{"text_format":"1","workbook":"xlsx","n_sheets":4,"sheets":["Flowable Backfill Mix Design ","Trial Batch Results","RX","Reference"],"not_rendered":{"charts":0,"images":1,"macros":1,"external_links":0,"defined_names":155,"comments":2,"pivot_tables":0},"unopened":[],"bounds":{"document_bytes":16777216,"sheet_cells":100000,"rows_first":2000,"rows_last":500,"rows_between":2000,"halvings":0,"cell_chars":16384,"cell_head_chars":4096},"cells_cut":0,"cells_raw":0,"read":"whole","date_system":"1900"}

{"sheet":"Flowable Backfill Mix Design ","index":0,"n_rows":62,"n_cols":11,"rows_kept":62,"cut":false,"hidden":false,"merged":[[61,1,61,4],[50,1,51,8],[24,3,24,4],[40,1,40,3],[43,1,43,3],[37,1,37,3],[39,1,39,3],[26,2,26,5],[27,2,27,5],[24,5,24,8],[57,1,57,4],[33,2,33,4],[54,3,54,5],[57,7,57,10],[55,2,55,5],[0,0,0,1],[11,3,11,4],[8,7,8,8],[11,7,11,8],[7,3,7,4],[9,3,9,4],[10,7,10,8],[10,3,10,4],[7,7,7,8],[8,3,8,4],[9,7,9,8],[13,3,13,4],[16,3,16,4],[53,1,53,8],[14,3,14,8],[28,2,28,4],[29,2,29,4],[52,1,52,8],[24,1,24,2],[21,1,21,2],[21,3,21,4],[22,3,22,4],[23,3,23,4],[22,5,22,8],[23,5,23,8],[12,7,12,8],[15,3,15,8],[12,3,12,4],[13,7,13,8],[47,1,47,5],[30,2,30,4],[31,2,31,4],[32,2,32,4],[16,7,16,8],[41,1,41,3],[38,1,38,3],[44,1,44,3],[45,1,45,3],[21,5,21,8],[22,1,22,2],[23,1,23,2]]}
["TxDOT Manuals >"]
[null,"TEXAS DEPARTMENT OF TRANSPORTATION",null,null,null,null,null,null,null,null,97]
[null,null,null,null,null,null,null,null,null,null,2]
[null,null,null,null,null,null,null,null,null,null,"txfbmxdes.xlsm::44769.459549"]
[null,"MIX DESIGN for FLOWABLE BACKFILL "]
[]
[null,null,null,null,null,null,null,null,{"$f":"\"File Version: \" & TEXT(MID(sn,SEARCH(\"::\",sn,1)+2,20),\"mm/dd/yy hh:mm:ss\")","v":"File Version: 07/27/22 11:01:45"}]
[null,null,"SAMPLE ID:",null,null,null,"SAMPLED DATE:"]
[null,null,"TEST NUMBER:",null,null,null,"LETTING DATE:"]
[null,null,"SAMPLE STATUS:",null,null,null,"CONTROLLING CSJ:"]
[null,null,"COUNTY:",null,null,null,"SPEC YEAR:"]
[null,null,"SAMPLED BY:",null,null,null,"SPEC ITEM:"]
[null,null,"SAMPLE LOCATION:",null,null,null,"SPECIAL PROVISION:"]
[null,null,"MATERIAL CODE:",null,null,null,"CLASS:"]
[null,null,"MATERIAL NAME:"]
[null,null,"PRODUCER:"]
[null,null,"AREA ENGINEER:",null,null,null,"PROJECT MANAGER:"]
[]
[null,null,"COURSE\\LIFT:",null,"STATION:",null,"DIST. FROM CL:"]
[]
[null,"MIXTURE COMPONENTS"]
[null,"Component",null,"Material",null,"Producer"]
[null,"Fine Aggregate:"]
[null,"Cement:"]
[null,"Pozzolan:"]
[]
[null,null,"COMPONENTS BY WEIGHT"]
[null,null,"(1) Cubic Yard Batch"]
[null,null,"Weight of Cement, (Lbs):"]
[null,null,"Weight of 11, (Lbs):"]
[null,null,"Volume of Water, (Gal):"]
[null,null,"SSD Weight of Fine Aggregate, (Lbs):"]
[null,null,"Air Content, (%):"]
[null,null,"Design Unit Weight, (Lbs/Cu. Ft.):"]
[]
[null,"COMPONENTS "]
[null,"for 1 Cubic Yard Batch",null,null,"Weight (lbs)","Sp. Gravities","Abs Vol (ft3)"]
[null,"Weight of Cement, (Lbs):",null,null,null,null,{"$f":"IF(E38=\"\",\"\",(E38/(62.4*$F$38)))","v":""}]
[null,"Weight of Fly Ash, (Lbs):",null,null,null,null,{"$f":"IF($E$39=\"\",\"\",($E$39/($F$39*62.4)))","v":""}]
[null,"Volume of Water, (Gal):",null,null,null,null,{"$f":"IF(E40=\"\",\"\",(E40*0.1336806))","v":""}]
[null,"SSD Weight of Fine Aggregate 1",null,null,null,null,{"$f":"IF(E41=\"\",\"\",(E41/($F$41*62.4)))","v":""}]
[null,"SSD Weight of Fine Aggregate 2",null,null,null,null,{"$f":"IF(E42=\"\",\"\",(E42/($F$42*62.4)))","v":""}]
[]
[null,"Air Content, (%):",null,null,null,"delete",{"$f":"IF($E$44=\"\",\"\",(27*$E$44/100))","v":""}]
[null,{"$f":"\"Admixture 1, \" & IF(SpecYear=\"1995\",\"(ml)\",\"(oz)\") & \":\"","v":"Admixture 1, (oz):"},null,null,null,null,{"$f":"IF($E$45=\"\",\"\",($E$45*1.044379*0.001))","v":""}]
[null,{"$f":"\"Admixture 2, \" & IF(SpecYear=\"1995\",\"(ml)\",\"(oz)\") & \":\"","v":"Admixture 2, (oz):"},null,null,null,null,{"$f":"IF($E$46=\"\",\"\",($E$46*1.044379*0.001))","v":""}]
[]
[null,"Total:",null,null,null,null,{"$f":"IF($G$38=\"\",\"\",(SUM($G$38:$G$46)))","v":""}]
[]
[null,"Remarks:",{"$f":"NOW()","v":"2022-07-27T11:01:45.530"}]
[]
[]
[]
[]
[null,"Test Method:","Tested By:","Use the trial batch sheet to record tester",null,null,"Tested Date:"]
[null,"TXFBMXDES"]
[null,"Test Stamp Code:",null,null,null,"Omit Test:","Completed Date:","Reviewed By:"]
[]
[null,"Locked By:","TxDOT:","District:","Area:"]
[]
[null,"Authorized By:",null,null,null,"Authorized Date:"]
[null,null,null,null,null,null,{"$f":"+IF(OR(AuthorizedDate>41466, AuthorizedDate=\"\"),\"2\",\"1\")","v":"2"}]

{"sheet":"Trial Batch Results","index":1,"n_rows":53,"n_cols":12,"rows_kept":53,"cut":false,"hidden":false,"merged":[[52,3,52,5],[48,2,49,10],[50,3,50,5],[36,3,37,3],[36,11,37,11],[25,7,27,7],[25,8,27,8],[28,3,29,3],[28,11,29,11],[30,3,31,3],[30,11,31,11],[18,2,18,3],[18,7,18,8],[32,3,33,3],[32,11,33,11],[34,3,35,3],[34,11,35,11],[25,9,27,9],[25,10,27,10],[25,11,27,11],[26,4,27,4],[21,2,21,11],[24,2,24,11],[25,2,27,2],[25,3,27,3],[25,5,27,5],[25,6,27,6],[15,2,15,3],[15,4,15,9],[16,2,16,3],[16,4,16,5],[16,6,16,7],[16,8,16,9],[13,2,13,3],[13,4,13,5],[13,6,13,7],[13,8,13,9],[14,2,14,3],[14,4,14,9],[11,2,11,3],[11,4,11,5],[11,6,11,7],[11,8,11,9],[12,2,12,3],[12,4,12,5],[12,6,12,7],[12,8,12,9],[9,2,9,3],[9,4,9,5],[9,6,9,7],[9,8,9,9],[10,2,10,3],[10,4,10,5],[10,6,10,7],[10,8,10,9],[8,2,8,3],[8,4,8,5],[8,6,8,7],[8,8,8,9],[0,1,0,2],[7,2,7,3],[7,4,7,5],[7,6,7,7],[7,8,7,9]]}
[null,"TxDOT Manuals >",null,null,"Tex-414-A","Tex-415-A","Tex-416-A","Tex-417-A","Tex-418-A","Tex-422-A","Tex-447-A","Tex-448-A"]
[null,null,"HELP"]
[null,null,"TEXAS DEPARTMENT OF TRANSPORTATION",null,null,null,null,null,null,null,null,16]
[null,null,null,null,null,null,null,null,null,null,null,1]
[null,null,"HYDRAULIC CEMENT CONCRETE MIX DESIGN & CONTROL",null,null,null,null,null,null,null,null,"Tx417.xls::38117.490382"]
[null,null,"Trial Batch Results"]
[]
[null,null,"SAMPLE ID",null,{"$f":"IF('Flowable Backfill Mix Design '!D8=\"\",\"\",'Flowable Backfill Mix Design '!D8)","v":""},null,"SAMPLED DATE:",null,{"$f":"IF('Flowable Backfill Mix Design '!H8=\"\",\"\",'Flowable Backfill Mix Design '!H8)","v":""}]
[null,null,"TEST NUMBER:",null,{"$f":"IF('Flowable Backfill Mix Design '!D9=\"\",\"\",'Flowable Backfill Mix Design '!D9)","v":""},null,"LETTING DATE:",null,{"$f":"IF('Flowable Backfill Mix Design '!H9=\"\",\"\",'Flowable Backfill Mix Design '!H9)","v":""}]
[null,null,"SAMPLE STATUS:",null,{"$f":"IF('Flowable Backfill Mix Design '!D10=\"\",\"\",'Flowable Backfill Mix Design '!D10)","v":""},null,"CONTROLLING CSJ:",null,{"$f":"IF('Flowable Backfill Mix Design '!H10=\"\",\"\",'Flowable Backfill Mix Design '!H10)","v":""}]
[null,null,"COUNTY:",null,{"$f":"IF('Flowable Backfill Mix Design '!D11=\"\",\"\",'Flowable Backfill Mix Design '!D11)","v":""},null,"SPEC YEAR:",null,{"$f":"IF('Flowable Backfill Mix Design '!H11=\"\",\"\",'Flowable Backfill Mix Design '!H11)","v":""}]
[null,null,"SAMPLED BY:",null,{"$f":"IF('Flowable Backfill Mix Design '!D12=\"\",\"\",'Flowable Backfill Mix Design '!D12)","v":""},null,"SPEC ITEM:",null,{"$f":"IF('Flowable Backfill Mix Design '!H12=\"\",\"\",'Flowable Backfill Mix Design '!H12)","v":""}]
[null,null,"SAMPLE LOCATION:",null,{"$f":"IF('Flowable Backfill Mix Design '!D13=\"\",\"\",'Flowable Backfill Mix Design '!D13)","v":""},null,"SPECIAL PROVISION:",null,{"$f":"IF('Flowable Backfill Mix Design '!H13=\"\",\"\",'Flowable Backfill Mix Design '!H13)","v":""}]
[null,null,"MATERIAL CODE:",null,{"$f":"IF('Flowable Backfill Mix Design '!D14=\"\",\"\",'Flowable Backfill Mix Design '!D14)","v":""},null,"CLASS:",null,{"$f":"IF('Flowable Backfill Mix Design '!H14=\"\",\"\",'Flowable Backfill Mix Design '!H14)","v":""}]
[null,null,"MATERIAL NAME:",null,{"$f":"IF('Flowable Backfill Mix Design '!D15=\"\",\"\",'Flowable Backfill Mix Design '!D15)","v":""}]
[null,null,"PRODUCER:",null,{"$f":"IF('Flowable Backfill Mix Design '!D16=\"\",\"\",'Flowable Backfill Mix Design '!D16)","v":""}]
[null,null,"AREA ENGINEER:",null,{"$f":"IF('Flowable Backfill Mix Design '!D17=\"\",\"\",'Flowable Backfill Mix Design '!D17)","v":""},null,"PROJECT MANAGER:",null,{"$f":"IF('Flowable Backfill Mix Design '!H17=\"\",\"\",'Flowable Backfill Mix Design '!H17)","v":""}]
[]
[null,null,"COURSE\\LIFT:",null,{"$f":"IF('Flowable Backfill Mix Design '!D19=\"\",\"\",'Flowable Backfill Mix Design '!D19)","v":""},"STATION:",{"$f":"IF('Flowable Backfill Mix Design '!F19=\"\",\"\",'Flowable Backfill Mix Design '!F19)","v":""},"DIST. FROM CL:",null,{"$f":"IF('Flowable Backfill Mix Design '!I19=\"\",\"\",'Flowable Backfill Mix Design '!I19)","v":""}]
[]
[]
[null,null,"COMPRESSIVE STRENGTH"]
[null,null,null,null,null,null,null,"Min. 28-Day Design Strength, (psi):"]
[null,null,null,null,null,null,null,"Min. 28-Day Target Strength (based on over-design requirements), (psi):"]
[null,null,"Test Method Tex-418-A (ASTM C 39)"]
[null,null,"Cylinder Number","Age",null,"Length of Cylinder  (inches)","Length to Diameter Ratio","Max Load (lbs.)","Failure Type","Correction Factor","Compressive Strength  (psi)","Average Compressive Strength (psi)"]
[null,null,null,null," of Cylinder "]
[]
[null,1,null,null,null,null,{"$f":"IF(ISERROR(IF(CircumDiameter1=\"circumference\",$F29/(SQRT($E29/PI())*2),($F29/$E29))),\"\",IF(CircumDiameter1=\"circumference\",$F29/(SQRT($E29/PI())*2),($F29/$E29)))","v":""},null,null,{"$f":"IF(G29=\"\",\"\",IF(G29<1,\"CHK SIZES\",IF(G29<2.1,1,VLOOKUP(G29,CorrectionFactor,2))))","v":""},{"$f":"IF(G29=\"\",\"\",ROUND(J29*IF(CircumDiameter1=\"Circumference\",(H29/((E29*E29)/12.566)),(H29/(0.7854*E29*E29))),-1))","v":""},{"$f":"IF(ISERROR(IF(ISBLANK(#REF!),ROUND(AVERAGE(K29:K30),-1),ROUND(AVERAGE(K29:K30),-1))),\"\",IF(ISBLANK(#REF!),ROUND(AVERAGE(K29:K30),-1),ROUND(AVERAGE(K29:K30),-1)))","v":""}]
[null,2,null,null,null,null,{"$f":"IF(ISERROR(IF(CircumDiameter1=\"circumference\",$F30/(SQRT($E30/PI())*2),($F30/$E30))),\"\",IF(CircumDiameter1=\"circumference\",$F30/(SQRT($E30/PI())*2),($F30/$E30)))","v":""},null,null,{"$f":"IF(G30=\"\",\"\",IF(G30<1,\"CHK SIZES\",IF(G30<2.1,1,VLOOKUP(G30,CorrectionFactor,2))))","v":""},{"$f":"IF(G30=\"\",\"\",ROUND(J30*IF(CircumDiameter1=\"Circumference\",(H30/((E30*E30)/12.566)),(H30/(0.7854*E30*E30))),-1))","v":""}]
[null,3,null,null,null,null,{"$f":"IF(ISERROR(IF(CircumDiameter1=\"circumference\",$F31/(SQRT($E31/PI())*2),($F31/$E31))),\"\",IF(CircumDiameter1=\"circumference\",$F31/(SQRT($E31/PI())*2),($F31/$E31)))","v":""},null,null,{"$f":"IF(G31=\"\",\"\",IF(G31<1,\"CHK SIZES\",IF(G31<2.1,1,VLOOKUP(G31,CorrectionFactor,2))))","v":""},{"$f":"IF(G31=\"\",\"\",ROUND(J31*IF(CircumDiameter1=\"Circumference\",(H31/((E31*E31)/12.566)),(H31/(0.7854*E31*E31))),-1))","v":""},{"$f":"IF(ISERROR(IF(ISBLANK(#REF!),ROUND(AVERAGE(K31:K32),-1),ROUND(AVERAGE(K31:K32),-1))),\"\",IF(ISBLANK(#REF!),ROUND(AVERAGE(K31:K32),-1),ROUND(AVERAGE(K31:K32),-1)))","v":""}]
[null,4,null,null,null,null,{"$f":"IF(ISERROR(IF(CircumDiameter1=\"circumference\",$F32/(SQRT($E32/PI())*2),($F32/$E32))),\"\",IF(CircumDiameter1=\"circumference\",$F32/(SQRT($E32/PI())*2),($F32/$E32)))","v":""},null,null,{"$f":"IF(G32=\"\",\"\",IF(G32<1,\"CHK SIZES\",IF(G32<2.1,1,VLOOKUP(G32,CorrectionFactor,2))))","v":""},{"$f":"IF(G32=\"\",\"\",ROUND(J32*IF(CircumDiameter1=\"Circumference\",(H32/((E32*E32)/12.566)),(H32/(0.7854*E32*E32))),-1))","v":""}]
[null,5,null,null,null,null,"",null,null,{"$f":"IF(G33=\"\",\"\",IF(G33<1,\"CHK SIZES\",IF(G33<2.1,1,VLOOKUP(G33,CorrectionFactor,2))))","v":""},{"$f":"IF(G33=\"\",\"\",ROUND(J33*IF(CircumDiameter1=\"Circumference\",(H33/((E33*E33)/12.566)),(H33/(0.7854*E33*E33))),-1))","v":""},{"$f":"IF(ISERROR(IF(ISBLANK(#REF!),ROUND(AVERAGE(K33:K34),-1),ROUND(AVERAGE(K33:K34),-1))),\"\",IF(ISBLANK(#REF!),ROUND(AVERAGE(K33:K34),-1),ROUND(AVERAGE(K33:K34),-1)))","v":""}]
[null,6,null,null,null,null,"",null,null,"",""]
[null,7,null,null,null,null,{"$f":"IF(ISERROR(IF(CircumDiameter1=\"circumference\",$F35/(SQRT($E35/PI())*2),($F35/$E35))),\"\",IF(CircumDiameter1=\"circumference\",$F35/(SQRT($E35/PI())*2),($F35/$E35)))","v":""},null,null,"","",{"$f":"IF(ISERROR(IF(ISBLANK(#REF!),ROUND(AVERAGE(K35:K36),-1),ROUND(AVERAGE(K35:K36),-1))),\"\",IF(ISBLANK(#REF!),ROUND(AVERAGE(K35:K36),-1),ROUND(AVERAGE(K35:K36),-1)))","v":""}]
[null,8,null,null,null,null,"",null,null,"",""]
[null,9,null,null,null,null,"",null,null,"","",{"$f":"IF(ISERROR(IF(ISBLANK(#REF!),ROUND(AVERAGE(K37:K38),-1),ROUND(AVERAGE(K37:K38),-1))),\"\",IF(ISBLANK(#REF!),ROUND(AVERAGE(K37:K38),-1),ROUND(AVERAGE(K37:K38),-1)))","v":""}]
[null,10,null,null,null,null,"",null,null,"",""]
[]
[]
[]
[]
[]
[]
[]
[]
[]
[null,null,"Trial Batch Remarks:"]
[]
[]
[null,null,"Test Method:","Tested By:",null,null,"Tested Date:"]
[]
[null,null,"TX418"]

{"sheet":"RX","index":2,"n_rows":137,"n_cols":9,"rows_kept":137,"cut":false,"hidden":true,"merged":[]}
[135]
["Fld_nbr","Value","Desc_1","Desc_2","Desc_3","Desc_4","Desc_5","Desc_6","Desc_7"]
[1,{"$f":"IF('Flowable Backfill Mix Design '!$B$51=\"\",\"\",'Flowable Backfill Mix Design '!$B$51)","v":""},{"$f":"'Flowable Backfill Mix Design '!$B$50","v":"Remarks:"}]
[2,{"$f":"IF('Flowable Backfill Mix Design '!$D$19=\"\",\"\",'Flowable Backfill Mix Design '!$D$19)","v":""},{"$f":"IF('Flowable Backfill Mix Design '!$C$19=\"\",\"\",'Flowable Backfill Mix Design '!$C$19)","v":"COURSE\\LIFT:"}]
[3,{"$f":"IF('Flowable Backfill Mix Design '!$C$56=\"\",\"\",'Flowable Backfill Mix Design '!$C$56)","v":""},"Tested By ",{"$f":"IF('Flowable Backfill Mix Design '!$B$56=\"\",\"\",'Flowable Backfill Mix Design '!$B$56)","v":"TXFBMXDES"}]
[4,{"$f":"IF('Flowable Backfill Mix Design '!$G$56=\"\",\"\",'Flowable Backfill Mix Design '!$G$56)","v":""},"Tested Date ",{"$f":"IF('Flowable Backfill Mix Design '!$B$56=\"\",\"\",'Flowable Backfill Mix Design '!$B$56)","v":"TXFBMXDES"}]
[5,{"$f":"IF('Flowable Backfill Mix Design '!$D$23=\"\",\"\",'Flowable Backfill Mix Design '!$D$23)","v":""},{"$f":"IF('Flowable Backfill Mix Design '!$B$5=\"\",\"\",'Flowable Backfill Mix Design '!$B$5)","v":"MIX DESIGN for FLOWABLE BACKFILL "},{"$f":"IF('Flowable Backfill Mix Design '!$D$22=\"\",\"\",'Flowable Backfill Mix Design '!$D$22)","v":"Material"},{"$f":"IF('Flowable Backfill Mix Design '!$B$22=\"\",\"\",'Flowable Backfill Mix Design '!$B$22)","v":"Component"},{"$f":"IF('Flowable Backfill Mix Design '!$B$23=\"\",\"\",'Flowable Backfill Mix Design '!$B$23)","v":"Fine Aggregate:"}]
[6,{"$f":"IF('Flowable Backfill Mix Design '!$F$23=\"\",\"\",'Flowable Backfill Mix Design '!$F$23)","v":""},{"$f":"IF('Flowable Backfill Mix Design '!$B$5=\"\",\"\",'Flowable Backfill Mix Design '!$B$5)","v":"MIX DESIGN for FLOWABLE BACKFILL "},{"$f":"IF('Flowable Backfill Mix Design '!$F$22=\"\",\"\",'Flowable Backfill Mix Design '!$F$22)","v":"Producer"},{"$f":"IF('Flowable Backfill Mix Design '!$B$22=\"\",\"\",'Flowable Backfill Mix Design '!$B$22)","v":"Component"},{"$f":"IF('Flowable Backfill Mix Design '!$B$23=\"\",\"\",'Flowable Backfill Mix Design '!$B$23)","v":"Fine Aggregate:"}]
[7,{"$f":"IF('Flowable Backfill Mix Design '!$D$24=\"\",\"\",'Flowable Backfill Mix Design '!$D$24)","v":""},{"$f":"IF('Flowable Backfill Mix Design '!$B$5=\"\",\"\",'Flowable Backfill Mix Design '!$B$5)","v":"MIX DESIGN for FLOWABLE BACKFILL "},{"$f":"IF('Flowable Backfill Mix Design '!$D$22=\"\",\"\",'Flowable Backfill Mix Design '!$D$22)","v":"Material"},{"$f":"IF('Flowable Backfill Mix Design '!$B$22=\"\",\"\",'Flowable Backfill Mix Design '!$B$22)","v":"Component"},{"$f":"IF('Flowable Backfill Mix Design '!$B$24=\"\",\"\",'Flowable Backfill Mix Design '!$B$24)","v":"Cement:"}]
[8,{"$f":"IF('Flowable Backfill Mix Design '!$F$24=\"\",\"\",'Flowable Backfill Mix Design '!$F$24)","v":""},{"$f":"IF('Flowable Backfill Mix Design '!$B$5=\"\",\"\",'Flowable Backfill Mix Design '!$B$5)","v":"MIX DESIGN for FLOWABLE BACKFILL "},{"$f":"IF('Flowable Backfill Mix Design '!$F$22=\"\",\"\",'Flowable Backfill Mix Design '!$F$22)","v":"Producer"},{"$f":"IF('Flowable Backfill Mix Design '!$B$22=\"\",\"\",'Flowable Backfill Mix Design '!$B$22)","v":"Component"},{"$f":"IF('Flowable Backfill Mix Design '!$B$24=\"\",\"\",'Flowable Backfill Mix Design '!$B$24)","v":"Cement:"}]
[9,{"$f":"IF('Flowable Backfill Mix Design '!$D$25=\"\",\"\",'Flowable Backfill Mix Design '!$D$25)","v":""},{"$f":"IF('Flowable Backfill Mix Design '!$B$5=\"\",\"\",'Flowable Backfill Mix Design '!$B$5)","v":"MIX DESIGN for FLOWABLE BACKFILL "},{"$f":"IF('Flowable Backfill Mix Design '!$D$22=\"\",\"\",'Flowable Backfill Mix Design '!$D$22)","v":"Material"},{"$f":"IF('Flowable Backfill Mix Design '!$B$22=\"\",\"\",'Flowable Backfill Mix Design '!$B$22)","v":"Component"},{"$f":"IF('Flowable Backfill Mix Design '!$B$25=\"\",\"\",'Flowable Backfill Mix Design '!$B$25)","v":"Pozzolan:"}]
[10,{"$f":"IF('Flowable Backfill Mix Design '!$F$25=\"\",\"\",'Flowable Backfill Mix Design '!$F$25)","v":""},{"$f":"IF('Flowable Backfill Mix Design '!$B$5=\"\",\"\",'Flowable Backfill Mix Design '!$B$5)","v":"MIX DESIGN for FLOWABLE BACKFILL "},{"$f":"IF('Flowable Backfill Mix Design '!$F$22=\"\",\"\",'Flowable Backfill Mix Design '!$F$22)","v":"Producer"},{"$f":"IF('Flowable Backfill Mix Design '!$B$22=\"\",\"\",'Flowable Backfill Mix Design '!$B$22)","v":"Component"},{"$f":"IF('Flowable Backfill Mix Design '!$B$25=\"\",\"\",'Flowable Backfill Mix Design '!$B$25)","v":"Pozzolan:"}]
[11,{"$f":"IF('Flowable Backfill Mix Design '!$F$29=\"\",\"\",'Flowable Backfill Mix Design '!$F$29)","v":""},{"$f":"IF('Flowable Backfill Mix Design '!$B$5=\"\",\"\",'Flowable Backfill Mix Design '!$B$5)","v":"MIX DESIGN for FLOWABLE BACKFILL "},{"$f":"IF('Flowable Backfill Mix Design '!$C$29=\"\",\"\",'Flowable Backfill Mix Design '!$C$29)","v":"Weight of Cement, (Lbs):"}]
[12,{"$f":"IF('Flowable Backfill Mix Design '!$F$30=\"\",\"\",'Flowable Backfill Mix Design '!$F$30)","v":""},{"$f":"IF('Flowable Backfill Mix Design '!$B$5=\"\",\"\",'Flowable Backfill Mix Design '!$B$5)","v":"MIX DESIGN for FLOWABLE BACKFILL "},{"$f":"IF('Flowable Backfill Mix Design '!$C$30=\"\",\"\",'Flowable Backfill Mix Design '!$C$30)","v":"Weight of 11, (Lbs):"}]
[13,{"$f":"IF('Flowable Backfill Mix Design '!$F$31=\"\",\"\",'Flowable Backfill Mix Design '!$F$31)","v":""},{"$f":"IF('Flowable Backfill Mix Design '!$B$5=\"\",\"\",'Flowable Backfill Mix Design '!$B$5)","v":"MIX DESIGN for FLOWABLE BACKFILL "},{"$f":"IF('Flowable Backfill Mix Design '!$C$31=\"\",\"\",'Flowable Backfill Mix Design '!$C$31)","v":"Volume of Water, (Gal):"}]
[14,{"$f":"IF('Flowable Backfill Mix Design '!$F$32=\"\",\"\",'Flowable Backfill Mix Design '!$F$32)","v":""},{"$f":"IF('Flowable Backfill Mix Design '!$B$5=\"\",\"\",'Flowable Backfill Mix Design '!$B$5)","v":"MIX DESIGN for FLOWABLE BACKFILL "},{"$f":"IF('Flowable Backfill Mix Design '!$C$32=\"\",\"\",'Flowable Backfill Mix Design '!$C$32)","v":"SSD Weight of Fine Aggregate, (Lbs):"}]
[15,{"$f":"IF('Flowable Backfill Mix Design '!$F$33=\"\",\"\",'Flowable Backfill Mix Design '!$F$33)","v":""},{"$f":"IF('Flowable Backfill Mix Design '!$B$5=\"\",\"\",'Flowable Backfill Mix Design '!$B$5)","v":"MIX DESIGN for FLOWABLE BACKFILL "},{"$f":"IF('Flowable Backfill Mix Design '!$C$33=\"\",\"\",'Flowable Backfill Mix Design '!$C$33)","v":"Air Content, (%):"}]
[16,{"$f":"IF('Flowable Backfill Mix Design '!$F$34=\"\",\"\",'Flowable Backfill Mix Design '!$F$34)","v":""},{"$f":"IF('Flowable Backfill Mix Design '!$B$5=\"\",\"\",'Flowable Backfill Mix Design '!$B$5)","v":"MIX DESIGN for FLOWABLE BACKFILL "},{"$f":"IF('Flowable Backfill Mix Design '!$C$34=\"\",\"\",'Flowable Backfill Mix Design '!$C$34)","v":"Design Unit Weight, (Lbs/Cu. Ft.):"}]
[17,{"$f":"IF('Flowable Backfill Mix Design '!$E$38=\"\",\"\",'Flowable Backfill Mix Design '!$E$38)","v":""},{"$f":"IF( 'Flowable Backfill Mix Design '!$B$5=\"\",\"\", 'Flowable Backfill Mix Design '!$B$5)","v":"MIX DESIGN for FLOWABLE BACKFILL "},{"$f":"IF('Flowable Backfill Mix Design '!$B$38=\"\",\"\",'Flowable Backfill Mix Design '!$B$38)","v":"Weight of Cement, (Lbs):"},{"$f":"IF('Flowable Backfill Mix Design '!$E$37=\"\",\"\",'Flowable Backfill Mix Design '!$E$37)","v":"Weight (lbs)"}]
[18,{"$f":"IF('Flowable Backfill Mix Design '!$F$38=\"\",\"\",'Flowable Backfill Mix Design '!$F$38)","v":""},{"$f":"IF( 'Flowable Backfill Mix Design '!$B$5=\"\",\"\", 'Flowable Backfill Mix Design '!$B$5)","v":"MIX DESIGN for FLOWABLE BACKFILL "},{"$f":"IF('Flowable Backfill Mix Design '!$B$38=\"\",\"\",'Flowable Backfill Mix Design '!$B$38)","v":"Weight of Cement, (Lbs):"},{"$f":"IF('Flowable Backfill Mix Design '!$F$37=\"\",\"\",'Flowable Backfill Mix Design '!$F$37)","v":"Sp. Gravities"}]
[19,{"$f":"IF('Flowable Backfill Mix Design '!$G$38=\"\",\"\",'Flowable Backfill Mix Design '!$G$38)","v":""},{"$f":"IF( 'Flowable Backfill Mix Design '!$B$5=\"\",\"\", 'Flowable Backfill Mix Design '!$B$5)","v":"MIX DESIGN for FLOWABLE BACKFILL "},{"$f":"IF('Flowable Backfill Mix Design '!$B$38=\"\",\"\",'Flowable Backfill Mix Design '!$B$38)","v":"Weight of Cement, (Lbs):"},{"$f":"IF('Flowable Backfill Mix Design '!$G$37=\"\",\"\",'Flowable Backfill Mix Design '!$G$37)","v":"Abs Vol (ft3)"}]
[20,{"$f":"IF('Flowable Backfill Mix Design '!$E$39=\"\",\"\",'Flowable Backfill Mix Design '!$E$39)","v":""},{"$f":"IF( 'Flowable Backfill Mix Design '!$B$5=\"\",\"\", 'Flowable Backfill Mix Design '!$B$5)","v":"MIX DESIGN for FLOWABLE BACKFILL "},{"$f":"IF('Flowable Backfill Mix Design '!$B$39=\"\",\"\",'Flowable Backfill Mix Design '!$B$39)","v":"Weight of Fly Ash, (Lbs):"},{"$f":"IF('Flowable Backfill Mix Design '!$E$37=\"\",\"\",'Flowable Backfill Mix Design '!$E$37)","v":"Weight (lbs)"}]
[21,{"$f":"IF('Flowable Backfill Mix Design '!$F$39=\"\",\"\",'Flowable Backfill Mix Design '!$F$39)","v":""},{"$f":"IF( 'Flowable Backfill Mix Design '!$B$5=\"\",\"\", 'Flowable Backfill Mix Design '!$B$5)","v":"MIX DESIGN for FLOWABLE BACKFILL "},{"$f":"IF('Flowable Backfill Mix Design '!$B$39=\"\",\"\",'Flowable Backfill Mix Design '!$B$39)","v":"Weight of Fly Ash, (Lbs):"},{"$f":"IF('Flowable Backfill Mix Design '!$F$37=\"\",\"\",'Flowable Backfill Mix Design '!$F$37)","v":"Sp. Gravities"}]
[22,{"$f":"IF('Flowable Backfill Mix Design '!$G$39=\"\",\"\",'Flowable Backfill Mix Design '!$G$39)","v":""},{"$f":"IF( 'Flowable Backfill Mix Design '!$B$5=\"\",\"\", 'Flowable Backfill Mix Design '!$B$5)","v":"MIX DESIGN for FLOWABLE BACKFILL "},{"$f":"IF('Flowable Backfill Mix Design '!$B$39=\"\",\"\",'Flowable Backfill Mix Design '!$B$39)","v":"Weight of Fly Ash, (Lbs):"},{"$f":"IF('Flowable Backfill Mix Design '!$G$37=\"\",\"\",'Flowable Backfill Mix Design '!$G$37)","v":"Abs Vol (ft3)"}]
[23,{"$f":"IF('Flowable Backfill Mix Design '!$E$40=\"\",\"\",'Flowable Backfill Mix Design '!$E$40)","v":""},{"$f":"IF( 'Flowable Backfill Mix Design '!$B$5=\"\",\"\", 'Flowable Backfill Mix Design '!$B$5)","v":"MIX DESIGN for FLOWABLE BACKFILL "},{"$f":"IF('Flowable Backfill Mix Design '!$B$40=\"\",\"\",'Flowable Backfill Mix Design '!$B$40)","v":"Volume of Water, (Gal):"},{"$f":"IF('Flowable Backfill Mix Design '!$E$37=\"\",\"\",'Flowable Backfill Mix Design '!$E$37)","v":"Weight (lbs)"}]
[24,{"$f":"IF('Flowable Backfill Mix Design '!$F$40=\"\",\"\",'Flowable Backfill Mix Design '!$F$40)","v":""},{"$f":"IF( 'Flowable Backfill Mix Design '!$B$5=\"\",\"\", 'Flowable Backfill Mix Design '!$B$5)","v":"MIX DESIGN for FLOWABLE BACKFILL "},{"$f":"IF('Flowable Backfill Mix Design '!$B$40=\"\",\"\",'Flowable Backfill Mix Design '!$B$40)","v":"Volume of Water, (Gal):"},{"$f":"IF('Flowable Backfill Mix Design '!$F$37=\"\",\"\",'Flowable Backfill Mix Design '!$F$37)","v":"Sp. Gravities"}]
[25,{"$f":"IF('Flowable Backfill Mix Design '!$G$40=\"\",\"\",'Flowable Backfill Mix Design '!$G$40)","v":""},{"$f":"IF( 'Flowable Backfill Mix Design '!$B$5=\"\",\"\", 'Flowable Backfill Mix Design '!$B$5)","v":"MIX DESIGN for FLOWABLE BACKFILL "},{"$f":"IF('Flowable Backfill Mix Design '!$B$40=\"\",\"\",'Flowable Backfill Mix Design '!$B$40)","v":"Volume of Water, (Gal):"},{"$f":"IF('Flowable Backfill Mix Design '!$G$37=\"\",\"\",'Flowable Backfill Mix Design '!$G$37)","v":"Abs Vol (ft3)"}]
[26,{"$f":"IF('Flowable Backfill Mix Design '!$E$41=\"\",\"\",'Flowable Backfill Mix Design '!$E$41)","v":""},{"$f":"IF( 'Flowable Backfill Mix Design '!$B$5=\"\",\"\", 'Flowable Backfill Mix Design '!$B$5)","v":"MIX DESIGN for FLOWABLE BACKFILL "},{"$f":"IF('Flowable Backfill Mix Design '!$B$41=\"\",\"\",'Flowable Backfill Mix Design '!$B$41)","v":"SSD Weight of Fine Aggregate 1"},{"$f":"IF('Flowable Backfill Mix Design '!$E$37=\"\",\"\",'Flowable Backfill Mix Design '!$E$37)","v":"Weight (lbs)"}]
[27,{"$f":"IF('Flowable Backfill Mix Design '!$F$41=\"\",\"\",'Flowable Backfill Mix Design '!$F$41)","v":""},{"$f":"IF( 'Flowable Backfill Mix Design '!$B$5=\"\",\"\", 'Flowable Backfill Mix Design '!$B$5)","v":"MIX DESIGN for FLOWABLE BACKFILL "},{"$f":"IF('Flowable Backfill Mix Design '!$B$41=\"\",\"\",'Flowable Backfill Mix Design '!$B$41)","v":"SSD Weight of Fine Aggregate 1"},{"$f":"IF('Flowable Backfill Mix Design '!$F$37=\"\",\"\",'Flowable Backfill Mix Design '!$F$37)","v":"Sp. Gravities"}]
[28,{"$f":"IF('Flowable Backfill Mix Design '!$G$41=\"\",\"\",'Flowable Backfill Mix Design '!$G$41)","v":""},{"$f":"IF( 'Flowable Backfill Mix Design '!$B$5=\"\",\"\", 'Flowable Backfill Mix Design '!$B$5)","v":"MIX DESIGN for FLOWABLE BACKFILL "},{"$f":"IF('Flowable Backfill Mix Design '!$B$41=\"\",\"\",'Flowable Backfill Mix Design '!$B$41)","v":"SSD Weight of Fine Aggregate 1"},{"$f":"IF('Flowable Backfill Mix Design '!$G$37=\"\",\"\",'Flowable Backfill Mix Design '!$G$37)","v":"Abs Vol (ft3)"}]
[29,{"$f":"IF('Flowable Backfill Mix Design '!$E$42=\"\",\"\",'Flowable Backfill Mix Design '!$E$42)","v":""},{"$f":"IF( 'Flowable Backfill Mix Design '!$B$5=\"\",\"\", 'Flowable Backfill Mix Design '!$B$5)","v":"MIX DESIGN for FLOWABLE BACKFILL "},{"$f":"IF('Flowable Backfill Mix Design '!$B$42=\"\",\"\",'Flowable Backfill Mix Design '!$B$42)","v":"SSD Weight of Fine Aggregate 2"},{"$f":"IF('Flowable Backfill Mix Design '!$E$37=\"\",\"\",'Flowable Backfill Mix Design '!$E$37)","v":"Weight (lbs)"}]
[30,{"$f":"IF('Flowable Backfill Mix Design '!$F$42=\"\",\"\",'Flowable Backfill Mix Design '!$F$42)","v":""},{"$f":"IF( 'Flowable Backfill Mix Design '!$B$5=\"\",\"\", 'Flowable Backfill Mix Design '!$B$5)","v":"MIX DESIGN for FLOWABLE BACKFILL "},{"$f":"IF('Flowable Backfill Mix Design '!$B$42=\"\",\"\",'Flowable Backfill Mix Design '!$B$42)","v":"SSD Weight of Fine Aggregate 2"},{"$f":"IF('Flowable Backfill Mix Design '!$F$37=\"\",\"\",'Flowable Backfill Mix Design '!$F$37)","v":"Sp. Gravities"}]
[31,{"$f":"IF('Flowable Backfill Mix Design '!$G$42=\"\",\"\",'Flowable Backfill Mix Design '!$G$42)","v":""},{"$f":"IF( 'Flowable Backfill Mix Design '!$B$5=\"\",\"\", 'Flowable Backfill Mix Design '!$B$5)","v":"MIX DESIGN for FLOWABLE BACKFILL "},{"$f":"IF('Flowable Backfill Mix Design '!$B$42=\"\",\"\",'Flowable Backfill Mix Design '!$B$42)","v":"SSD Weight of Fine Aggregate 2"},{"$f":"IF('Flowable Backfill Mix Design '!$G$37=\"\",\"\",'Flowable Backfill Mix Design '!$G$37)","v":"Abs Vol (ft3)"}]
[32,{"$f":"IF('Flowable Backfill Mix Design '!$E$44=\"\",\"\",'Flowable Backfill Mix Design '!$E$44)","v":""},{"$f":"IF( 'Flowable Backfill Mix Design '!$B$5=\"\",\"\", 'Flowable Backfill Mix Design '!$B$5)","v":"MIX DESIGN for FLOWABLE BACKFILL "},{"$f":"IF('Flowable Backfill Mix Design '!$B$44=\"\",\"\",'Flowable Backfill Mix Design '!$B$44)","v":"Air Content, (%):"},{"$f":"IF('Flowable Backfill Mix Design '!$E$37=\"\",\"\",'Flowable Backfill Mix Design '!$E$37)","v":"Weight (lbs)"}]
[33,{"$f":"IF('Flowable Backfill Mix Design '!$G$44=\"\",\"\",'Flowable Backfill Mix Design '!$G$44)","v":""},{"$f":"IF( 'Flowable Backfill Mix Design '!$B$5=\"\",\"\", 'Flowable Backfill Mix Design '!$B$5)","v":"MIX DESIGN for FLOWABLE BACKFILL "},{"$f":"IF('Flowable Backfill Mix Design '!$B$44=\"\",\"\",'Flowable Backfill Mix Design '!$B$44)","v":"Air Content, (%):"},{"$f":"IF('Flowable Backfill Mix Design '!$G$37=\"\",\"\",'Flowable Backfill Mix Design '!$G$37)","v":"Abs Vol (ft3)"}]
[34,{"$f":"IF('Flowable Backfill Mix Design '!$E$45=\"\",\"\",'Flowable Backfill Mix Design '!$E$45)","v":""},{"$f":"IF( 'Flowable Backfill Mix Design '!$B$5=\"\",\"\", 'Flowable Backfill Mix Design '!$B$5)","v":"MIX DESIGN for FLOWABLE BACKFILL "},{"$f":"IF('Flowable Backfill Mix Design '!$B$45=\"\",\"\",'Flowable Backfill Mix Design '!$B$45)","v":"Admixture 1, (oz):"},{"$f":"IF('Flowable Backfill Mix Design '!$E$37=\"\",\"\",'Flowable Backfill Mix Design '!$E$37)","v":"Weight (lbs)"}]
[35,{"$f":"IF('Flowable Backfill Mix Design '!$F$45=\"\",\"\",'Flowable Backfill Mix Design '!$F$45)","v":""},{"$f":"IF( 'Flowable Backfill Mix Design '!$B$5=\"\",\"\", 'Flowable Backfill Mix Design '!$B$5)","v":"MIX DESIGN for FLOWABLE BACKFILL "},{"$f":"IF('Flowable Backfill Mix Design '!$B$45=\"\",\"\",'Flowable Backfill Mix Design '!$B$45)","v":"Admixture 1, (oz):"},{"$f":"IF('Flowable Backfill Mix Design '!$F$37=\"\",\"\",'Flowable Backfill Mix Design '!$F$37)","v":"Sp. Gravities"}]
[36,{"$f":"IF('Flowable Backfill Mix Design '!$G$45=\"\",\"\",'Flowable Backfill Mix Design '!$G$45)","v":""},{"$f":"IF( 'Flowable Backfill Mix Design '!$B$5=\"\",\"\", 'Flowable Backfill Mix Design '!$B$5)","v":"MIX DESIGN for FLOWABLE BACKFILL "},{"$f":"IF('Flowable Backfill Mix Design '!$B$45=\"\",\"\",'Flowable Backfill Mix Design '!$B$45)","v":"Admixture 1, (oz):"},{"$f":"IF('Flowable Backfill Mix Design '!$G$37=\"\",\"\",'Flowable Backfill Mix Design '!$G$37)","v":"Abs Vol (ft3)"}]
[37,{"$f":"IF('Flowable Backfill Mix Design '!$E$46=\"\",\"\",'Flowable Backfill Mix Design '!$E$46)","v":""},{"$f":"IF( 'Flowable Backfill Mix Design '!$B$5=\"\",\"\", 'Flowable Backfill Mix Design '!$B$5)","v":"MIX DESIGN for FLOWABLE BACKFILL "},{"$f":"IF('Flowable Backfill Mix Design '!$B$46=\"\",\"\",'Flowable Backfill Mix Design '!$B$46)","v":"Admixture 2, (oz):"},{"$f":"IF('Flowable Backfill Mix Design '!$E$37=\"\",\"\",'Flowable Backfill Mix Design '!$E$37)","v":"Weight (lbs)"}]
[38,{"$f":"IF('Flowable Backfill Mix Design '!$F$46=\"\",\"\",'Flowable Backfill Mix Design '!$F$46)","v":""},{"$f":"IF( 'Flowable Backfill Mix Design '!$B$5=\"\",\"\", 'Flowable Backfill Mix Design '!$B$5)","v":"MIX DESIGN for FLOWABLE BACKFILL "},{"$f":"IF('Flowable Backfill Mix Design '!$B$46=\"\",\"\",'Flowable Backfill Mix Design '!$B$46)","v":"Admixture 2, (oz):"},{"$f":"IF('Flowable Backfill Mix Design '!$F$37=\"\",\"\",'Flowable Backfill Mix Design '!$F$37)","v":"Sp. Gravities"}]
[39,{"$f":"IF('Flowable Backfill Mix Design '!$G$46=\"\",\"\",'Flowable Backfill Mix Design '!$G$46)","v":""},{"$f":"IF( 'Flowable Backfill Mix Design '!$B$5=\"\",\"\", 'Flowable Backfill Mix Design '!$B$5)","v":"MIX DESIGN for FLOWABLE BACKFILL "},{"$f":"IF('Flowable Backfill Mix Design '!$B$46=\"\",\"\",'Flowable Backfill Mix Design '!$B$46)","v":"Admixture 2, (oz):"},{"$f":"IF('Flowable Backfill Mix Design '!$G$37=\"\",\"\",'Flowable Backfill Mix Design '!$G$37)","v":"Abs Vol (ft3)"}]
[40,{"$f":"IF('Flowable Backfill Mix Design '!$G$48=\"\",\"\",'Flowable Backfill Mix Design '!$G$48)","v":""},{"$f":"IF( 'Flowable Backfill Mix Design '!$B$5=\"\",\"\", 'Flowable Backfill Mix Design '!$B$5)","v":"MIX DESIGN for FLOWABLE BACKFILL "},{"$f":"IF('Flowable Backfill Mix Design '!$B$48=\"\",\"\",'Flowable Backfill Mix Design '!$B$48)","v":"Total:"},{"$f":"IF('Flowable Backfill Mix Design '!$G$37=\"\",\"\",'Flowable Backfill Mix Design '!$G$37)","v":"Abs Vol (ft3)"}]
[41,{"$f":"IF('Trial Batch Results'!$I$23=\"\",\"\",'Trial Batch Results'!$I$23)","v":""},{"$f":"IF( 'Trial Batch Results'!$C$6=\"\",\"\", 'Trial Batch Results'!$C$6)","v":"Trial Batch Results"},{"$f":"IF('Trial Batch Results'!$H$23=\"\",\"\",'Trial Batch Results'!$H$23)","v":"Min. 28-Day Design Strength, (psi):"}]
[42,{"$f":"IF('Trial Batch Results'!$I$24=\"\",\"\",'Trial Batch Results'!$I$24)","v":""},{"$f":"IF( 'Trial Batch Results'!$C$6=\"\",\"\", 'Trial Batch Results'!$C$6)","v":"Trial Batch Results"},{"$f":"IF('Trial Batch Results'!$H$24=\"\",\"\",'Trial Batch Results'!$H$24)","v":"Min. 28-Day Target Strength (based on over-design requirements), (psi):"}]
[43,{"$f":"IF('Trial Batch Results'!$C$29=\"\",\"\",'Trial Batch Results'!$C$29)","v":""},{"$f":"IF( 'Trial Batch Results'!$C$6=\"\",\"\", 'Trial Batch Results'!$C$6)","v":"Trial Batch Results"},{"$f":"IF('Trial Batch Results'!$C$26=\"\",\"\",'Trial Batch Results'!$C$26)","v":"Cylinder Number"},{"$f":"IF('Trial Batch Results'!$B$29=\"\",\"\",'Trial Batch Results'!$B$29)","v":1}]
[44,{"$f":"IF('Trial Batch Results'!$D$29=\"\",\"\",'Trial Batch Results'!$D$29)","v":""},{"$f":"IF( 'Trial Batch Results'!$C$6=\"\",\"\", 'Trial Batch Results'!$C$6)","v":"Trial Batch Results"},{"$f":"IF('Trial Batch Results'!$D$26=\"\",\"\",'Trial Batch Results'!$D$26)","v":"Age"},{"$f":"IF('Trial Batch Results'!$B$29=\"\",\"\",'Trial Batch Results'!$B$29)","v":1}]
[45,{"$f":"IF('Trial Batch Results'!$E$29=\"\",\"\",'Trial Batch Results'!$E$29)","v":""},{"$f":"IF( 'Trial Batch Results'!$C$6=\"\",\"\", 'Trial Batch Results'!$C$6)","v":"Trial Batch Results"},{"$f":"IF('Trial Batch Results'!$E$26=\"\",\"\",'Trial Batch Results'!$E$26)","v":""},{"$f":"IF('Trial Batch Results'!$B$29=\"\",\"\",'Trial Batch Results'!$B$29)","v":1}]
[46,{"$f":"IF('Trial Batch Results'!$F$29=\"\",\"\",'Trial Batch Results'!$F$29)","v":""},{"$f":"IF( 'Trial Batch Results'!$C$6=\"\",\"\", 'Trial Batch Results'!$C$6)","v":"Trial Batch Results"},{"$f":"IF('Trial Batch Results'!$F$26=\"\",\"\",'Trial Batch Results'!$F$26)","v":"Length of Cylinder  (inches)"},{"$f":"IF('Trial Batch Results'!$B$29=\"\",\"\",'Trial Batch Results'!$B$29)","v":1}]
[47,{"$f":"IF('Trial Batch Results'!$G$29=\"\",\"\",'Trial Batch Results'!$G$29)","v":""},{"$f":"IF( 'Trial Batch Results'!$C$6=\"\",\"\", 'Trial Batch Results'!$C$6)","v":"Trial Batch Results"},{"$f":"IF('Trial Batch Results'!$G$26=\"\",\"\",'Trial Batch Results'!$G$26)","v":"Length to Diameter Ratio"},{"$f":"IF('Trial Batch Results'!$B$29=\"\",\"\",'Trial Batch Results'!$B$29)","v":1}]
[48,{"$f":"IF('Trial Batch Results'!$H$29=\"\",\"\",'Trial Batch Results'!$H$29)","v":""},{"$f":"IF( 'Trial Batch Results'!$C$6=\"\",\"\", 'Trial Batch Results'!$C$6)","v":"Trial Batch Results"},{"$f":"IF('Trial Batch Results'!$H$26=\"\",\"\",'Trial Batch Results'!$H$26)","v":"Max Load (lbs.)"},{"$f":"IF('Trial Batch Results'!$B$29=\"\",\"\",'Trial Batch Results'!$B$29)","v":1}]
[49,{"$f":"IF('Trial Batch Results'!$I$29=\"\",\"\",'Trial Batch Results'!$I$29)","v":""},{"$f":"IF( 'Trial Batch Results'!$C$6=\"\",\"\", 'Trial Batch Results'!$C$6)","v":"Trial Batch Results"},{"$f":"IF('Trial Batch Results'!$I$26=\"\",\"\",'Trial Batch Results'!$I$26)","v":"Failure Type"},{"$f":"IF('Trial Batch Results'!$B$29=\"\",\"\",'Trial Batch Results'!$B$29)","v":1}]
[50,{"$f":"IF('Trial Batch Results'!$J$29=\"\",\"\",'Trial Batch Results'!$J$29)","v":""},{"$f":"IF( 'Trial Batch Results'!$C$6=\"\",\"\", 'Trial Batch Results'!$C$6)","v":"Trial Batch Results"},{"$f":"IF('Trial Batch Results'!$J$26=\"\",\"\",'Trial Batch Results'!$J$26)","v":"Correction Factor"},{"$f":"IF('Trial Batch Results'!$B$29=\"\",\"\",'Trial Batch Results'!$B$29)","v":1}]
[51,{"$f":"IF('Trial Batch Results'!$K$29=\"\",\"\",'Trial Batch Results'!$K$29)","v":""},{"$f":"IF( 'Trial Batch Results'!$C$6=\"\",\"\", 'Trial Batch Results'!$C$6)","v":"Trial Batch Results"},{"$f":"IF('Trial Batch Results'!$K$26=\"\",\"\",'Trial Batch Results'!$K$26)","v":"Compressive Strength  (psi)"},{"$f":"IF('Trial Batch Results'!$B$29=\"\",\"\",'Trial Batch Results'!$B$29)","v":1}]
[52,{"$f":"IF('Trial Batch Results'!$L$29=\"\",\"\",'Trial Batch Results'!$L$29)","v":""},{"$f":"IF( 'Trial Batch Results'!$C$6=\"\",\"\", 'Trial Batch Results'!$C$6)","v":"Trial Batch Results"},{"$f":"IF('Trial Batch Results'!$L$26=\"\",\"\",'Trial Batch Results'!$L$26)","v":"Average Compressive Strength (psi)"},{"$f":"IF('Trial Batch Results'!$B$29=\"\",\"\",'Trial Batch Results'!$B$29)","v":1}]
[53,{"$f":"IF('Trial Batch Results'!$C$30=\"\",\"\",'Trial Batch Results'!$C$30)","v":""},{"$f":"IF( 'Trial Batch Results'!$C$6=\"\",\"\", 'Trial Batch Results'!$C$6)","v":"Trial Batch Results"},{"$f":"IF('Trial Batch Results'!$C$26=\"\",\"\",'Trial Batch Results'!$C$26)","v":"Cylinder Number"},{"$f":"IF('Trial Batch Results'!$B$30=\"\",\"\",'Trial Batch Results'!$B$30)","v":2}]
[54,{"$f":"IF('Trial Batch Results'!$E$30=\"\",\"\",'Trial Batch Results'!$E$30)","v":""},{"$f":"IF( 'Trial Batch Results'!$C$6=\"\",\"\", 'Trial Batch Results'!$C$6)","v":"Trial Batch Results"},{"$f":"IF('Trial Batch Results'!$E$26=\"\",\"\",'Trial Batch Results'!$E$26)","v":""},{"$f":"IF('Trial Batch Results'!$B$30=\"\",\"\",'Trial Batch Results'!$B$30)","v":2}]
[55,{"$f":"IF('Trial Batch Results'!$F$30=\"\",\"\",'Trial Batch Results'!$F$30)","v":""},{"$f":"IF( 'Trial Batch Results'!$C$6=\"\",\"\", 'Trial Batch Results'!$C$6)","v":"Trial Batch Results"},{"$f":"IF('Trial Batch Results'!$F$26=\"\",\"\",'Trial Batch Results'!$F$26)","v":"Length of Cylinder  (inches)"},{"$f":"IF('Trial Batch Results'!$B$30=\"\",\"\",'Trial Batch Results'!$B$30)","v":2}]
[56,{"$f":"IF('Trial Batch Results'!$G$30=\"\",\"\",'Trial Batch Results'!$G$30)","v":""},{"$f":"IF( 'Trial Batch Results'!$C$6=\"\",\"\", 'Trial Batch Results'!$C$6)","v":"Trial Batch Results"},{"$f":"IF('Trial Batch Results'!$G$26=\"\",\"\",'Trial Batch Results'!$G$26)","v":"Length to Diameter Ratio"},{"$f":"IF('Trial Batch Results'!$B$30=\"\",\"\",'Trial Batch Results'!$B$30)","v":2}]
[57,{"$f":"IF('Trial Batch Results'!$H$30=\"\",\"\",'Trial Batch Results'!$H$30)","v":""},{"$f":"IF( 'Trial Batch Results'!$C$6=\"\",\"\", 'Trial Batch Results'!$C$6)","v":"Trial Batch Results"},{"$f":"IF('Trial Batch Results'!$H$26=\"\",\"\",'Trial Batch Results'!$H$26)","v":"Max Load (lbs.)"},{"$f":"IF('Trial Batch Results'!$B$30=\"\",\"\",'Trial Batch Results'!$B$30)","v":2}]
[58,{"$f":"IF('Trial Batch Results'!$I$30=\"\",\"\",'Trial Batch Results'!$I$30)","v":""},{"$f":"IF( 'Trial Batch Results'!$C$6=\"\",\"\", 'Trial Batch Results'!$C$6)","v":"Trial Batch Results"},{"$f":"IF('Trial Batch Results'!$I$26=\"\",\"\",'Trial Batch Results'!$I$26)","v":"Failure Type"},{"$f":"IF('Trial Batch Results'!$B$30=\"\",\"\",'Trial Batch Results'!$B$30)","v":2}]
[59,{"$f":"IF('Trial Batch Results'!$J$30=\"\",\"\",'Trial Batch Results'!$J$30)","v":""},{"$f":"IF( 'Trial Batch Results'!$C$6=\"\",\"\", 'Trial Batch Results'!$C$6)","v":"Trial Batch Results"},{"$f":"IF('Trial Batch Results'!$J$26=\"\",\"\",'Trial Batch Results'!$J$26)","v":"Correction Factor"},{"$f":"IF('Trial Batch Results'!$B$30=\"\",\"\",'Trial Batch Results'!$B$30)","v":2}]
[60,{"$f":"IF('Trial Batch Results'!$K$30=\"\",\"\",'Trial Batch Results'!$K$30)","v":""},{"$f":"IF( 'Trial Batch Results'!$C$6=\"\",\"\", 'Trial Batch Results'!$C$6)","v":"Trial Batch Results"},{"$f":"IF('Trial Batch Results'!$K$26=\"\",\"\",'Trial Batch Results'!$K$26)","v":"Compressive Strength  (psi)"},{"$f":"IF('Trial Batch Results'!$B$30=\"\",\"\",'Trial Batch Results'!$B$30)","v":2}]
[61,{"$f":"IF('Trial Batch Results'!$C$31=\"\",\"\",'Trial Batch Results'!$C$31)","v":""},{"$f":"IF( 'Trial Batch Results'!$C$6=\"\",\"\", 'Trial Batch Results'!$C$6)","v":"Trial Batch Results"},{"$f":"IF('Trial Batch Results'!$C$26=\"\",\"\",'Trial Batch Results'!$C$26)","v":"Cylinder Number"},{"$f":"IF('Trial Batch Results'!$B$31=\"\",\"\",'Trial Batch Results'!$B$31)","v":3}]
[62,{"$f":"IF('Trial Batch Results'!$D$31=\"\",\"\",'Trial Batch Results'!$D$31)","v":""},{"$f":"IF( 'Trial Batch Results'!$C$6=\"\",\"\", 'Trial Batch Results'!$C$6)","v":"Trial Batch Results"},{"$f":"IF('Trial Batch Results'!$D$26=\"\",\"\",'Trial Batch Results'!$D$26)","v":"Age"},{"$f":"IF('Trial Batch Results'!$B$31=\"\",\"\",'Trial Batch Results'!$B$31)","v":3}]
[63,{"$f":"IF('Trial Batch Results'!$E$31=\"\",\"\",'Trial Batch Results'!$E$31)","v":""},{"$f":"IF( 'Trial Batch Results'!$C$6=\"\",\"\", 'Trial Batch Results'!$C$6)","v":"Trial Batch Results"},{"$f":"IF('Trial Batch Results'!$E$26=\"\",\"\",'Trial Batch Results'!$E$26)","v":""},{"$f":"IF('Trial Batch Results'!$B$31=\"\",\"\",'Trial Batch Results'!$B$31)","v":3}]
[64,{"$f":"IF('Trial Batch Results'!$F$31=\"\",\"\",'Trial Batch Results'!$F$31)","v":""},{"$f":"IF( 'Trial Batch Results'!$C$6=\"\",\"\", 'Trial Batch Results'!$C$6)","v":"Trial Batch Results"},{"$f":"IF('Trial Batch Results'!$F$26=\"\",\"\",'Trial Batch Results'!$F$26)","v":"Length of Cylinder  (inches)"},{"$f":"IF('Trial Batch Results'!$B$31=\"\",\"\",'Trial Batch Results'!$B$31)","v":3}]
[65,{"$f":"IF('Trial Batch Results'!$G$31=\"\",\"\",'Trial Batch Results'!$G$31)","v":""},{"$f":"IF( 'Trial Batch Results'!$C$6=\"\",\"\", 'Trial Batch Results'!$C$6)","v":"Trial Batch Results"},{"$f":"IF('Trial Batch Results'!$G$26=\"\",\"\",'Trial Batch Results'!$G$26)","v":"Length to Diameter Ratio"},{"$f":"IF('Trial Batch Results'!$B$31=\"\",\"\",'Trial Batch Results'!$B$31)","v":3}]
[66,{"$f":"IF('Trial Batch Results'!$H$31=\"\",\"\",'Trial Batch Results'!$H$31)","v":""},{"$f":"IF( 'Trial Batch Results'!$C$6=\"\",\"\", 'Trial Batch Results'!$C$6)","v":"Trial Batch Results"},{"$f":"IF('Trial Batch Results'!$H$26=\"\",\"\",'Trial Batch Results'!$H$26)","v":"Max Load (lbs.)"},{"$f":"IF('Trial Batch Results'!$B$31=\"\",\"\",'Trial Batch Results'!$B$31)","v":3}]
[67,{"$f":"IF('Trial Batch Results'!$I$31=\"\",\"\",'Trial Batch Results'!$I$31)","v":""},{"$f":"IF( 'Trial Batch Results'!$C$6=\"\",\"\", 'Trial Batch Results'!$C$6)","v":"Trial Batch Results"},{"$f":"IF('Trial Batch Results'!$I$26=\"\",\"\",'Trial Batch Results'!$I$26)","v":"Failure Type"},{"$f":"IF('Trial Batch Results'!$B$31=\"\",\"\",'Trial Batch Results'!$B$31)","v":3}]
[68,{"$f":"IF('Trial Batch Results'!$J$31=\"\",\"\",'Trial Batch Results'!$J$31)","v":""},{"$f":"IF( 'Trial Batch Results'!$C$6=\"\",\"\", 'Trial Batch Results'!$C$6)","v":"Trial Batch Results"},{"$f":"IF('Trial Batch Results'!$J$26=\"\",\"\",'Trial Batch Results'!$J$26)","v":"Correction Factor"},{"$f":"IF('Trial Batch Results'!$B$31=\"\",\"\",'Trial Batch Results'!$B$31)","v":3}]
[69,{"$f":"IF('Trial Batch Results'!$K$31=\"\",\"\",'Trial Batch Results'!$K$31)","v":""},{"$f":"IF( 'Trial Batch Results'!$C$6=\"\",\"\", 'Trial Batch Results'!$C$6)","v":"Trial Batch Results"},{"$f":"IF('Trial Batch Results'!$K$26=\"\",\"\",'Trial Batch Results'!$K$26)","v":"Compressive Strength  (psi)"},{"$f":"IF('Trial Batch Results'!$B$31=\"\",\"\",'Trial Batch Results'!$B$31)","v":3}]
[70,{"$f":"IF('Trial Batch Results'!$L$31=\"\",\"\",'Trial Batch Results'!$L$31)","v":""},{"$f":"IF( 'Trial Batch Results'!$C$6=\"\",\"\", 'Trial Batch Results'!$C$6)","v":"Trial Batch Results"},{"$f":"IF('Trial Batch Results'!$L$26=\"\",\"\",'Trial Batch Results'!$L$26)","v":"Average Compressive Strength (psi)"},{"$f":"IF('Trial Batch Results'!$B$31=\"\",\"\",'Trial Batch Results'!$B$31)","v":3}]
[71,{"$f":"IF('Trial Batch Results'!$C$32=\"\",\"\",'Trial Batch Results'!$C$32)","v":""},{"$f":"IF( 'Trial Batch Results'!$C$6=\"\",\"\", 'Trial Batch Results'!$C$6)","v":"Trial Batch Results"},{"$f":"IF('Trial Batch Results'!$C$26=\"\",\"\",'Trial Batch Results'!$C$26)","v":"Cylinder Number"},{"$f":"IF('Trial Batch Results'!$B$32=\"\",\"\",'Trial Batch Results'!$B$32)","v":4}]
[72,{"$f":"IF('Trial Batch Results'!$E$32=\"\",\"\",'Trial Batch Results'!$E$32)","v":""},{"$f":"IF( 'Trial Batch Results'!$C$6=\"\",\"\", 'Trial Batch Results'!$C$6)","v":"Trial Batch Results"},{"$f":"IF('Trial Batch Results'!$E$26=\"\",\"\",'Trial Batch Results'!$E$26)","v":""},{"$f":"IF('Trial Batch Results'!$B$32=\"\",\"\",'Trial Batch Results'!$B$32)","v":4}]
[73,{"$f":"IF('Trial Batch Results'!$F$32=\"\",\"\",'Trial Batch Results'!$F$32)","v":""},{"$f":"IF( 'Trial Batch Results'!$C$6=\"\",\"\", 'Trial Batch Results'!$C$6)","v":"Trial Batch Results"},{"$f":"IF('Trial Batch Results'!$F$26=\"\",\"\",'Trial Batch Results'!$F$26)","v":"Length of Cylinder  (inches)"},{"$f":"IF('Trial Batch Results'!$B$32=\"\",\"\",'Trial Batch Results'!$B$32)","v":4}]
[74,{"$f":"IF('Trial Batch Results'!$G$32=\"\",\"\",'Trial Batch Results'!$G$32)","v":""},{"$f":"IF( 'Trial Batch Results'!$C$6=\"\",\"\", 'Trial Batch Results'!$C$6)","v":"Trial Batch Results"},{"$f":"IF('Trial Batch Results'!$G$26=\"\",\"\",'Trial Batch Results'!$G$26)","v":"Length to Diameter Ratio"},{"$f":"IF('Trial Batch Results'!$B$32=\"\",\"\",'Trial Batch Results'!$B$32)","v":4}]
[75,{"$f":"IF('Trial Batch Results'!$H$32=\"\",\"\",'Trial Batch Results'!$H$32)","v":""},{"$f":"IF( 'Trial Batch Results'!$C$6=\"\",\"\", 'Trial Batch Results'!$C$6)","v":"Trial Batch Results"},{"$f":"IF('Trial Batch Results'!$H$26=\"\",\"\",'Trial Batch Results'!$H$26)","v":"Max Load (lbs.)"},{"$f":"IF('Trial Batch Results'!$B$32=\"\",\"\",'Trial Batch Results'!$B$32)","v":4}]
[76,{"$f":"IF('Trial Batch Results'!$I$32=\"\",\"\",'Trial Batch Results'!$I$32)","v":""},{"$f":"IF( 'Trial Batch Results'!$C$6=\"\",\"\", 'Trial Batch Results'!$C$6)","v":"Trial Batch Results"},{"$f":"IF('Trial Batch Results'!$I$26=\"\",\"\",'Trial Batch Results'!$I$26)","v":"Failure Type"},{"$f":"IF('Trial Batch Results'!$B$32=\"\",\"\",'Trial Batch Results'!$B$32)","v":4}]
[77,{"$f":"IF('Trial Batch Results'!$J$32=\"\",\"\",'Trial Batch Results'!$J$32)","v":""},{"$f":"IF( 'Trial Batch Results'!$C$6=\"\",\"\", 'Trial Batch Results'!$C$6)","v":"Trial Batch Results"},{"$f":"IF('Trial Batch Results'!$J$26=\"\",\"\",'Trial Batch Results'!$J$26)","v":"Correction Factor"},{"$f":"IF('Trial Batch Results'!$B$32=\"\",\"\",'Trial Batch Results'!$B$32)","v":4}]
[78,{"$f":"IF('Trial Batch Results'!$K$32=\"\",\"\",'Trial Batch Results'!$K$32)","v":""},{"$f":"IF( 'Trial Batch Results'!$C$6=\"\",\"\", 'Trial Batch Results'!$C$6)","v":"Trial Batch Results"},{"$f":"IF('Trial Batch Results'!$K$26=\"\",\"\",'Trial Batch Results'!$K$26)","v":"Compressive Strength  (psi)"},{"$f":"IF('Trial Batch Results'!$B$32=\"\",\"\",'Trial Batch Results'!$B$32)","v":4}]
[79,{"$f":"IF('Trial Batch Results'!$C$33=\"\",\"\",'Trial Batch Results'!$C$33)","v":""},{"$f":"IF( 'Trial Batch Results'!$C$6=\"\",\"\", 'Trial Batch Results'!$C$6)","v":"Trial Batch Results"},{"$f":"IF('Trial Batch Results'!$C$26=\"\",\"\",'Trial Batch Results'!$C$26)","v":"Cylinder Number"},{"$f":"IF('Trial Batch Results'!$B$33=\"\",\"\",'Trial Batch Results'!$B$33)","v":5}]
[80,{"$f":"IF('Trial Batch Results'!$D$33=\"\",\"\",'Trial Batch Results'!$D$33)","v":""},{"$f":"IF( 'Trial Batch Results'!$C$6=\"\",\"\", 'Trial Batch Results'!$C$6)","v":"Trial Batch Results"},{"$f":"IF('Trial Batch Results'!$D$26=\"\",\"\",'Trial Batch Results'!$D$26)","v":"Age"},{"$f":"IF('Trial Batch Results'!$B$33=\"\",\"\",'Trial Batch Results'!$B$33)","v":5}]
[81,{"$f":"IF('Trial Batch Results'!$E$33=\"\",\"\",'Trial Batch Results'!$E$33)","v":""},{"$f":"IF( 'Trial Batch Results'!$C$6=\"\",\"\", 'Trial Batch Results'!$C$6)","v":"Trial Batch Results"},{"$f":"IF('Trial Batch Results'!$E$26=\"\",\"\",'Trial Batch Results'!$E$26)","v":""},{"$f":"IF('Trial Batch Results'!$B$33=\"\",\"\",'Trial Batch Results'!$B$33)","v":5}]
[82,{"$f":"IF('Trial Batch Results'!$F$33=\"\",\"\",'Trial Batch Results'!$F$33)","v":""},{"$f":"IF( 'Trial Batch Results'!$C$6=\"\",\"\", 'Trial Batch Results'!$C$6)","v":"Trial Batch Results"},{"$f":"IF('Trial Batch Results'!$F$26=\"\",\"\",'Trial Batch Results'!$F$26)","v":"Length of Cylinder  (inches)"},{"$f":"IF('Trial Batch Results'!$B$33=\"\",\"\",'Trial Batch Results'!$B$33)","v":5}]
[83,{"$f":"IF('Trial Batch Results'!$G$33=\"\",\"\",'Trial Batch Results'!$G$33)","v":""},{"$f":"IF( 'Trial Batch Results'!$C$6=\"\",\"\", 'Trial Batch Results'!$C$6)","v":"Trial Batch Results"},{"$f":"IF('Trial Batch Results'!$G$26=\"\",\"\",'Trial Batch Results'!$G$26)","v":"Length to Diameter Ratio"},{"$f":"IF('Trial Batch Results'!$B$33=\"\",\"\",'Trial Batch Results'!$B$33)","v":5}]
[84,{"$f":"IF('Trial Batch Results'!$H$33=\"\",\"\",'Trial Batch Results'!$H$33)","v":""},{"$f":"IF( 'Trial Batch Results'!$C$6=\"\",\"\", 'Trial Batch Results'!$C$6)","v":"Trial Batch Results"},{"$f":"IF('Trial Batch Results'!$H$26=\"\",\"\",'Trial Batch Results'!$H$26)","v":"Max Load (lbs.)"},{"$f":"IF('Trial Batch Results'!$B$33=\"\",\"\",'Trial Batch Results'!$B$33)","v":5}]
[85,{"$f":"IF('Trial Batch Results'!$I$33=\"\",\"\",'Trial Batch Results'!$I$33)","v":""},{"$f":"IF( 'Trial Batch Results'!$C$6=\"\",\"\", 'Trial Batch Results'!$C$6)","v":"Trial Batch Results"},{"$f":"IF('Trial Batch Results'!$I$26=\"\",\"\",'Trial Batch Results'!$I$26)","v":"Failure Type"},{"$f":"IF('Trial Batch Results'!$B$33=\"\",\"\",'Trial Batch Results'!$B$33)","v":5}]
[86,{"$f":"IF('Trial Batch Results'!$J$33=\"\",\"\",'Trial Batch Results'!$J$33)","v":""},{"$f":"IF( 'Trial Batch Results'!$C$6=\"\",\"\", 'Trial Batch Results'!$C$6)","v":"Trial Batch Results"},{"$f":"IF('Trial Batch Results'!$J$26=\"\",\"\",'Trial Batch Results'!$J$26)","v":"Correction Factor"},{"$f":"IF('Trial Batch Results'!$B$33=\"\",\"\",'Trial Batch Results'!$B$33)","v":5}]
[87,{"$f":"IF('Trial Batch Results'!$K$33=\"\",\"\",'Trial Batch Results'!$K$33)","v":""},{"$f":"IF( 'Trial Batch Results'!$C$6=\"\",\"\", 'Trial Batch Results'!$C$6)","v":"Trial Batch Results"},{"$f":"IF('Trial Batch Results'!$K$26=\"\",\"\",'Trial Batch Results'!$K$26)","v":"Compressive Strength  (psi)"},{"$f":"IF('Trial Batch Results'!$B$33=\"\",\"\",'Trial Batch Results'!$B$33)","v":5}]
[88,{"$f":"IF('Trial Batch Results'!$L$33=\"\",\"\",'Trial Batch Results'!$L$33)","v":""},{"$f":"IF( 'Trial Batch Results'!$C$6=\"\",\"\", 'Trial Batch Results'!$C$6)","v":"Trial Batch Results"},{"$f":"IF('Trial Batch Results'!$L$26=\"\",\"\",'Trial Batch Results'!$L$26)","v":"Average Compressive Strength (psi)"},{"$f":"IF('Trial Batch Results'!$B$33=\"\",\"\",'Trial Batch Results'!$B$33)","v":5}]
[89,{"$f":"IF('Trial Batch Results'!$C$34=\"\",\"\",'Trial Batch Results'!$C$34)","v":""},{"$f":"IF( 'Trial Batch Results'!$C$6=\"\",\"\", 'Trial Batch Results'!$C$6)","v":"Trial Batch Results"},{"$f":"IF('Trial Batch Results'!$C$26=\"\",\"\",'Trial Batch Results'!$C$26)","v":"Cylinder Number"},{"$f":"IF('Trial Batch Results'!$B$34=\"\",\"\",'Trial Batch Results'!$B$34)","v":6}]
[90,{"$f":"IF('Trial Batch Results'!$E$34=\"\",\"\",'Trial Batch Results'!$E$34)","v":""},{"$f":"IF( 'Trial Batch Results'!$C$6=\"\",\"\", 'Trial Batch Results'!$C$6)","v":"Trial Batch Results"},{"$f":"IF('Trial Batch Results'!$E$26=\"\",\"\",'Trial Batch Results'!$E$26)","v":""},{"$f":"IF('Trial Batch Results'!$B$34=\"\",\"\",'Trial Batch Results'!$B$34)","v":6}]
[91,{"$f":"IF('Trial Batch Results'!$F$34=\"\",\"\",'Trial Batch Results'!$F$34)","v":""},{"$f":"IF( 'Trial Batch Results'!$C$6=\"\",\"\", 'Trial Batch Results'!$C$6)","v":"Trial Batch Results"},{"$f":"IF('Trial Batch Results'!$F$26=\"\",\"\",'Trial Batch Results'!$F$26)","v":"Length of Cylinder  (inches)"},{"$f":"IF('Trial Batch Results'!$B$34=\"\",\"\",'Trial Batch Results'!$B$34)","v":6}]
[92,{"$f":"IF('Trial Batch Results'!$G$34=\"\",\"\",'Trial Batch Results'!$G$34)","v":""},{"$f":"IF( 'Trial Batch Results'!$C$6=\"\",\"\", 'Trial Batch Results'!$C$6)","v":"Trial Batch Results"},{"$f":"IF('Trial Batch Results'!$G$26=\"\",\"\",'Trial Batch Results'!$G$26)","v":"Length to Diameter Ratio"},{"$f":"IF('Trial Batch Results'!$B$34=\"\",\"\",'Trial Batch Results'!$B$34)","v":6}]
[93,{"$f":"IF('Trial Batch Results'!$H$34=\"\",\"\",'Trial Batch Results'!$H$34)","v":""},{"$f":"IF( 'Trial Batch Results'!$C$6=\"\",\"\", 'Trial Batch Results'!$C$6)","v":"Trial Batch Results"},{"$f":"IF('Trial Batch Results'!$H$26=\"\",\"\",'Trial Batch Results'!$H$26)","v":"Max Load (lbs.)"},{"$f":"IF('Trial Batch Results'!$B$34=\"\",\"\",'Trial Batch Results'!$B$34)","v":6}]
[94,{"$f":"IF('Trial Batch Results'!$I$34=\"\",\"\",'Trial Batch Results'!$I$34)","v":""},{"$f":"IF( 'Trial Batch Results'!$C$6=\"\",\"\", 'Trial Batch Results'!$C$6)","v":"Trial Batch Results"},{"$f":"IF('Trial Batch Results'!$I$26=\"\",\"\",'Trial Batch Results'!$I$26)","v":"Failure Type"},{"$f":"IF('Trial Batch Results'!$B$34=\"\",\"\",'Trial Batch Results'!$B$34)","v":6}]
[95,{"$f":"IF('Trial Batch Results'!$J$34=\"\",\"\",'Trial Batch Results'!$J$34)","v":""},{"$f":"IF( 'Trial Batch Results'!$C$6=\"\",\"\", 'Trial Batch Results'!$C$6)","v":"Trial Batch Results"},{"$f":"IF('Trial Batch Results'!$J$26=\"\",\"\",'Trial Batch Results'!$J$26)","v":"Correction Factor"},{"$f":"IF('Trial Batch Results'!$B$34=\"\",\"\",'Trial Batch Results'!$B$34)","v":6}]
[96,{"$f":"IF('Trial Batch Results'!$K$34=\"\",\"\",'Trial Batch Results'!$K$34)","v":""},{"$f":"IF( 'Trial Batch Results'!$C$6=\"\",\"\", 'Trial Batch Results'!$C$6)","v":"Trial Batch Results"},{"$f":"IF('Trial Batch Results'!$K$26=\"\",\"\",'Trial Batch Results'!$K$26)","v":"Compressive Strength  (psi)"},{"$f":"IF('Trial Batch Results'!$B$34=\"\",\"\",'Trial Batch Results'!$B$34)","v":6}]
[97,{"$f":"IF('Trial Batch Results'!$C$35=\"\",\"\",'Trial Batch Results'!$C$35)","v":""},{"$f":"IF( 'Trial Batch Results'!$C$6=\"\",\"\", 'Trial Batch Results'!$C$6)","v":"Trial Batch Results"},{"$f":"IF('Trial Batch Results'!$C$26=\"\",\"\",'Trial Batch Results'!$C$26)","v":"Cylinder Number"},{"$f":"IF('Trial Batch Results'!$B$35=\"\",\"\",'Trial Batch Results'!$B$35)","v":7}]
[98,{"$f":"IF('Trial Batch Results'!$D$35=\"\",\"\",'Trial Batch Results'!$D$35)","v":""},{"$f":"IF( 'Trial Batch Results'!$C$6=\"\",\"\", 'Trial Batch Results'!$C$6)","v":"Trial Batch Results"},{"$f":"IF('Trial Batch Results'!$D$26=\"\",\"\",'Trial Batch Results'!$D$26)","v":"Age"},{"$f":"IF('Trial Batch Results'!$B$35=\"\",\"\",'Trial Batch Results'!$B$35)","v":7}]
[99,{"$f":"IF('Trial Batch Results'!$E$35=\"\",\"\",'Trial Batch Results'!$E$35)","v":""},{"$f":"IF( 'Trial Batch Results'!$C$6=\"\",\"\", 'Trial Batch Results'!$C$6)","v":"Trial Batch Results"},{"$f":"IF('Trial Batch Results'!$E$26=\"\",\"\",'Trial Batch Results'!$E$26)","v":""},{"$f":"IF('Trial Batch Results'!$B$35=\"\",\"\",'Trial Batch Results'!$B$35)","v":7}]
[100,{"$f":"IF('Trial Batch Results'!$F$35=\"\",\"\",'Trial Batch Results'!$F$35)","v":""},{"$f":"IF( 'Trial Batch Results'!$C$6=\"\",\"\", 'Trial Batch Results'!$C$6)","v":"Trial Batch Results"},{"$f":"IF('Trial Batch Results'!$F$26=\"\",\"\",'Trial Batch Results'!$F$26)","v":"Length of Cylinder  (inches)"},{"$f":"IF('Trial Batch Results'!$B$35=\"\",\"\",'Trial Batch Results'!$B$35)","v":7}]
[101,{"$f":"IF('Trial Batch Results'!$G$35=\"\",\"\",'Trial Batch Results'!$G$35)","v":""},{"$f":"IF( 'Trial Batch Results'!$C$6=\"\",\"\", 'Trial Batch Results'!$C$6)","v":"Trial Batch Results"},{"$f":"IF('Trial Batch Results'!$G$26=\"\",\"\",'Trial Batch Results'!$G$26)","v":"Length to Diameter Ratio"},{"$f":"IF('Trial Batch Results'!$B$35=\"\",\"\",'Trial Batch Results'!$B$35)","v":7}]
[102,{"$f":"IF('Trial Batch Results'!$H$35=\"\",\"\",'Trial Batch Results'!$H$35)","v":""},{"$f":"IF( 'Trial Batch Results'!$C$6=\"\",\"\", 'Trial Batch Results'!$C$6)","v":"Trial Batch Results"},{"$f":"IF('Trial Batch Results'!$H$26=\"\",\"\",'Trial Batch Results'!$H$26)","v":"Max Load (lbs.)"},{"$f":"IF('Trial Batch Results'!$B$35=\"\",\"\",'Trial Batch Results'!$B$35)","v":7}]
[103,{"$f":"IF('Trial Batch Results'!$I$35=\"\",\"\",'Trial Batch Results'!$I$35)","v":""},{"$f":"IF( 'Trial Batch Results'!$C$6=\"\",\"\", 'Trial Batch Results'!$C$6)","v":"Trial Batch Results"},{"$f":"IF('Trial Batch Results'!$I$26=\"\",\"\",'Trial Batch Results'!$I$26)","v":"Failure Type"},{"$f":"IF('Trial Batch Results'!$B$35=\"\",\"\",'Trial Batch Results'!$B$35)","v":7}]
[104,{"$f":"IF('Trial Batch Results'!$J$35=\"\",\"\",'Trial Batch Results'!$J$35)","v":""},{"$f":"IF( 'Trial Batch Results'!$C$6=\"\",\"\", 'Trial Batch Results'!$C$6)","v":"Trial Batch Results"},{"$f":"IF('Trial Batch Results'!$J$26=\"\",\"\",'Trial Batch Results'!$J$26)","v":"Correction Factor"},{"$f":"IF('Trial Batch Results'!$B$35=\"\",\"\",'Trial Batch Results'!$B$35)","v":7}]
[105,{"$f":"IF('Trial Batch Results'!$K$35=\"\",\"\",'Trial Batch Results'!$K$35)","v":""},{"$f":"IF( 'Trial Batch Results'!$C$6=\"\",\"\", 'Trial Batch Results'!$C$6)","v":"Trial Batch Results"},{"$f":"IF('Trial Batch Results'!$K$26=\"\",\"\",'Trial Batch Results'!$K$26)","v":"Compressive Strength  (psi)"},{"$f":"IF('Trial Batch Results'!$B$35=\"\",\"\",'Trial Batch Results'!$B$35)","v":7}]
[106,{"$f":"IF('Trial Batch Results'!$L$35=\"\",\"\",'Trial Batch Results'!$L$35)","v":""},{"$f":"IF( 'Trial Batch Results'!$C$6=\"\",\"\", 'Trial Batch Results'!$C$6)","v":"Trial Batch Results"},{"$f":"IF('Trial Batch Results'!$L$26=\"\",\"\",'Trial Batch Results'!$L$26)","v":"Average Compressive Strength (psi)"},{"$f":"IF('Trial Batch Results'!$B$35=\"\",\"\",'Trial Batch Results'!$B$35)","v":7}]
[107,{"$f":"IF('Trial Batch Results'!$C$36=\"\",\"\",'Trial Batch Results'!$C$36)","v":""},{"$f":"IF( 'Trial Batch Results'!$C$6=\"\",\"\", 'Trial Batch Results'!$C$6)","v":"Trial Batch Results"},{"$f":"IF('Trial Batch Results'!$C$26=\"\",\"\",'Trial Batch Results'!$C$26)","v":"Cylinder Number"},{"$f":"IF('Trial Batch Results'!$B$36=\"\",\"\",'Trial Batch Results'!$B$36)","v":8}]
[108,{"$f":"IF('Trial Batch Results'!$E$36=\"\",\"\",'Trial Batch Results'!$E$36)","v":""},{"$f":"IF( 'Trial Batch Results'!$C$6=\"\",\"\", 'Trial Batch Results'!$C$6)","v":"Trial Batch Results"},{"$f":"IF('Trial Batch Results'!$E$26=\"\",\"\",'Trial Batch Results'!$E$26)","v":""},{"$f":"IF('Trial Batch Results'!$B$36=\"\",\"\",'Trial Batch Results'!$B$36)","v":8}]
[109,{"$f":"IF('Trial Batch Results'!$F$36=\"\",\"\",'Trial Batch Results'!$F$36)","v":""},{"$f":"IF( 'Trial Batch Results'!$C$6=\"\",\"\", 'Trial Batch Results'!$C$6)","v":"Trial Batch Results"},{"$f":"IF('Trial Batch Results'!$F$26=\"\",\"\",'Trial Batch Results'!$F$26)","v":"Length of Cylinder  (inches)"},{"$f":"IF('Trial Batch Results'!$B$36=\"\",\"\",'Trial Batch Results'!$B$36)","v":8}]
[110,{"$f":"IF('Trial Batch Results'!$G$36=\"\",\"\",'Trial Batch Results'!$G$36)","v":""},{"$f":"IF( 'Trial Batch Results'!$C$6=\"\",\"\", 'Trial Batch Results'!$C$6)","v":"Trial Batch Results"},{"$f":"IF('Trial Batch Results'!$G$26=\"\",\"\",'Trial Batch Results'!$G$26)","v":"Length to Diameter Ratio"},{"$f":"IF('Trial Batch Results'!$B$36=\"\",\"\",'Trial Batch Results'!$B$36)","v":8}]
[111,{"$f":"IF('Trial Batch Results'!$H$36=\"\",\"\",'Trial Batch Results'!$H$36)","v":""},{"$f":"IF( 'Trial Batch Results'!$C$6=\"\",\"\", 'Trial Batch Results'!$C$6)","v":"Trial Batch Results"},{"$f":"IF('Trial Batch Results'!$H$26=\"\",\"\",'Trial Batch Results'!$H$26)","v":"Max Load (lbs.)"},{"$f":"IF('Trial Batch Results'!$B$36=\"\",\"\",'Trial Batch Results'!$B$36)","v":8}]
[112,{"$f":"IF('Trial Batch Results'!$I$36=\"\",\"\",'Trial Batch Results'!$I$36)","v":""},{"$f":"IF( 'Trial Batch Results'!$C$6=\"\",\"\", 'Trial Batch Results'!$C$6)","v":"Trial Batch Results"},{"$f":"IF('Trial Batch Results'!$I$26=\"\",\"\",'Trial Batch Results'!$I$26)","v":"Failure Type"},{"$f":"IF('Trial Batch Results'!$B$36=\"\",\"\",'Trial Batch Results'!$B$36)","v":8}]
[113,{"$f":"IF('Trial Batch Results'!$J$36=\"\",\"\",'Trial Batch Results'!$J$36)","v":""},{"$f":"IF( 'Trial Batch Results'!$C$6=\"\",\"\", 'Trial Batch Results'!$C$6)","v":"Trial Batch Results"},{"$f":"IF('Trial Batch Results'!$J$26=\"\",\"\",'Trial Batch Results'!$J$26)","v":"Correction Factor"},{"$f":"IF('Trial Batch Results'!$B$36=\"\",\"\",'Trial Batch Results'!$B$36)","v":8}]
[114,{"$f":"IF('Trial Batch Results'!$K$36=\"\",\"\",'Trial Batch Results'!$K$36)","v":""},{"$f":"IF( 'Trial Batch Results'!$C$6=\"\",\"\", 'Trial Batch Results'!$C$6)","v":"Trial Batch Results"},{"$f":"IF('Trial Batch Results'!$K$26=\"\",\"\",'Trial Batch Results'!$K$26)","v":"Compressive Strength  (psi)"},{"$f":"IF('Trial Batch Results'!$B$36=\"\",\"\",'Trial Batch Results'!$B$36)","v":8}]
[115,{"$f":"IF('Trial Batch Results'!$C$37=\"\",\"\",'Trial Batch Results'!$C$37)","v":""},{"$f":"IF( 'Trial Batch Results'!$C$6=\"\",\"\", 'Trial Batch Results'!$C$6)","v":"Trial Batch Results"},{"$f":"IF('Trial Batch Results'!$C$26=\"\",\"\",'Trial Batch Results'!$C$26)","v":"Cylinder Number"},{"$f":"IF('Trial Batch Results'!$B$37=\"\",\"\",'Trial Batch Results'!$B$37)","v":9}]
[116,{"$f":"IF('Trial Batch Results'!$D$37=\"\",\"\",'Trial Batch Results'!$D$37)","v":""},{"$f":"IF( 'Trial Batch Results'!$C$6=\"\",\"\", 'Trial Batch Results'!$C$6)","v":"Trial Batch Results"},{"$f":"IF('Trial Batch Results'!$D$26=\"\",\"\",'Trial Batch Results'!$D$26)","v":"Age"},{"$f":"IF('Trial Batch Results'!$B$37=\"\",\"\",'Trial Batch Results'!$B$37)","v":9}]
[117,{"$f":"IF('Trial Batch Results'!$E$37=\"\",\"\",'Trial Batch Results'!$E$37)","v":""},{"$f":"IF( 'Trial Batch Results'!$C$6=\"\",\"\", 'Trial Batch Results'!$C$6)","v":"Trial Batch Results"},{"$f":"IF('Trial Batch Results'!$E$26=\"\",\"\",'Trial Batch Results'!$E$26)","v":""},{"$f":"IF('Trial Batch Results'!$B$37=\"\",\"\",'Trial Batch Results'!$B$37)","v":9}]
[118,{"$f":"IF('Trial Batch Results'!$F$37=\"\",\"\",'Trial Batch Results'!$F$37)","v":""},{"$f":"IF( 'Trial Batch Results'!$C$6=\"\",\"\", 'Trial Batch Results'!$C$6)","v":"Trial Batch Results"},{"$f":"IF('Trial Batch Results'!$F$26=\"\",\"\",'Trial Batch Results'!$F$26)","v":"Length of Cylinder  (inches)"},{"$f":"IF('Trial Batch Results'!$B$37=\"\",\"\",'Trial Batch Results'!$B$37)","v":9}]
[119,{"$f":"IF('Trial Batch Results'!$G$37=\"\",\"\",'Trial Batch Results'!$G$37)","v":""},{"$f":"IF( 'Trial Batch Results'!$C$6=\"\",\"\", 'Trial Batch Results'!$C$6)","v":"Trial Batch Results"},{"$f":"IF('Trial Batch Results'!$G$26=\"\",\"\",'Trial Batch Results'!$G$26)","v":"Length to Diameter Ratio"},{"$f":"IF('Trial Batch Results'!$B$37=\"\",\"\",'Trial Batch Results'!$B$37)","v":9}]
[120,{"$f":"IF('Trial Batch Results'!$H$37=\"\",\"\",'Trial Batch Results'!$H$37)","v":""},{"$f":"IF( 'Trial Batch Results'!$C$6=\"\",\"\", 'Trial Batch Results'!$C$6)","v":"Trial Batch Results"},{"$f":"IF('Trial Batch Results'!$H$26=\"\",\"\",'Trial Batch Results'!$H$26)","v":"Max Load (lbs.)"},{"$f":"IF('Trial Batch Results'!$B$37=\"\",\"\",'Trial Batch Results'!$B$37)","v":9}]
[121,{"$f":"IF('Trial Batch Results'!$I$37=\"\",\"\",'Trial Batch Results'!$I$37)","v":""},{"$f":"IF( 'Trial Batch Results'!$C$6=\"\",\"\", 'Trial Batch Results'!$C$6)","v":"Trial Batch Results"},{"$f":"IF('Trial Batch Results'!$I$26=\"\",\"\",'Trial Batch Results'!$I$26)","v":"Failure Type"},{"$f":"IF('Trial Batch Results'!$B$37=\"\",\"\",'Trial Batch Results'!$B$37)","v":9}]
[122,{"$f":"IF('Trial Batch Results'!$J$37=\"\",\"\",'Trial Batch Results'!$J$37)","v":""},{"$f":"IF( 'Trial Batch Results'!$C$6=\"\",\"\", 'Trial Batch Results'!$C$6)","v":"Trial Batch Results"},{"$f":"IF('Trial Batch Results'!$J$26=\"\",\"\",'Trial Batch Results'!$J$26)","v":"Correction Factor"},{"$f":"IF('Trial Batch Results'!$B$37=\"\",\"\",'Trial Batch Results'!$B$37)","v":9}]
[123,{"$f":"IF('Trial Batch Results'!$K$37=\"\",\"\",'Trial Batch Results'!$K$37)","v":""},{"$f":"IF( 'Trial Batch Results'!$C$6=\"\",\"\", 'Trial Batch Results'!$C$6)","v":"Trial Batch Results"},{"$f":"IF('Trial Batch Results'!$K$26=\"\",\"\",'Trial Batch Results'!$K$26)","v":"Compressive Strength  (psi)"},{"$f":"IF('Trial Batch Results'!$B$37=\"\",\"\",'Trial Batch Results'!$B$37)","v":9}]
[124,{"$f":"IF('Trial Batch Results'!$L$37=\"\",\"\",'Trial Batch Results'!$L$37)","v":""},{"$f":"IF( 'Trial Batch Results'!$C$6=\"\",\"\", 'Trial Batch Results'!$C$6)","v":"Trial Batch Results"},{"$f":"IF('Trial Batch Results'!$L$26=\"\",\"\",'Trial Batch Results'!$L$26)","v":"Average Compressive Strength (psi)"},{"$f":"IF('Trial Batch Results'!$B$37=\"\",\"\",'Trial Batch Results'!$B$37)","v":9}]
[125,{"$f":"IF('Trial Batch Results'!$C$38=\"\",\"\",'Trial Batch Results'!$C$38)","v":""},{"$f":"IF( 'Trial Batch Results'!$C$6=\"\",\"\", 'Trial Batch Results'!$C$6)","v":"Trial Batch Results"},{"$f":"IF('Trial Batch Results'!$C$26=\"\",\"\",'Trial Batch Results'!$C$26)","v":"Cylinder Number"},{"$f":"IF('Trial Batch Results'!$B$38=\"\",\"\",'Trial Batch Results'!$B$38)","v":10}]
[126,{"$f":"IF('Trial Batch Results'!$E$38=\"\",\"\",'Trial Batch Results'!$E$38)","v":""},{"$f":"IF( 'Trial Batch Results'!$C$6=\"\",\"\", 'Trial Batch Results'!$C$6)","v":"Trial Batch Results"},{"$f":"IF('Trial Batch Results'!$E$26=\"\",\"\",'Trial Batch Results'!$E$26)","v":""},{"$f":"IF('Trial Batch Results'!$B$38=\"\",\"\",'Trial Batch Results'!$B$38)","v":10}]
[127,{"$f":"IF('Trial Batch Results'!$F$38=\"\",\"\",'Trial Batch Results'!$F$38)","v":""},{"$f":"IF( 'Trial Batch Results'!$C$6=\"\",\"\", 'Trial Batch Results'!$C$6)","v":"Trial Batch Results"},{"$f":"IF('Trial Batch Results'!$F$26=\"\",\"\",'Trial Batch Results'!$F$26)","v":"Length of Cylinder  (inches)"},{"$f":"IF('Trial Batch Results'!$B$38=\"\",\"\",'Trial Batch Results'!$B$38)","v":10}]
[128,{"$f":"IF('Trial Batch Results'!$G$38=\"\",\"\",'Trial Batch Results'!$G$38)","v":""},{"$f":"IF( 'Trial Batch Results'!$C$6=\"\",\"\", 'Trial Batch Results'!$C$6)","v":"Trial Batch Results"},{"$f":"IF('Trial Batch Results'!$G$26=\"\",\"\",'Trial Batch Results'!$G$26)","v":"Length to Diameter Ratio"},{"$f":"IF('Trial Batch Results'!$B$38=\"\",\"\",'Trial Batch Results'!$B$38)","v":10}]
[129,{"$f":"IF('Trial Batch Results'!$H$38=\"\",\"\",'Trial Batch Results'!$H$38)","v":""},{"$f":"IF( 'Trial Batch Results'!$C$6=\"\",\"\", 'Trial Batch Results'!$C$6)","v":"Trial Batch Results"},{"$f":"IF('Trial Batch Results'!$H$26=\"\",\"\",'Trial Batch Results'!$H$26)","v":"Max Load (lbs.)"},{"$f":"IF('Trial Batch Results'!$B$38=\"\",\"\",'Trial Batch Results'!$B$38)","v":10}]
[130,{"$f":"IF('Trial Batch Results'!$I$38=\"\",\"\",'Trial Batch Results'!$I$38)","v":""},{"$f":"IF( 'Trial Batch Results'!$C$6=\"\",\"\", 'Trial Batch Results'!$C$6)","v":"Trial Batch Results"},{"$f":"IF('Trial Batch Results'!$I$26=\"\",\"\",'Trial Batch Results'!$I$26)","v":"Failure Type"},{"$f":"IF('Trial Batch Results'!$B$38=\"\",\"\",'Trial Batch Results'!$B$38)","v":10}]
[131,{"$f":"IF('Trial Batch Results'!$J$38=\"\",\"\",'Trial Batch Results'!$J$38)","v":""},{"$f":"IF( 'Trial Batch Results'!$C$6=\"\",\"\", 'Trial Batch Results'!$C$6)","v":"Trial Batch Results"},{"$f":"IF('Trial Batch Results'!$J$26=\"\",\"\",'Trial Batch Results'!$J$26)","v":"Correction Factor"},{"$f":"IF('Trial Batch Results'!$B$38=\"\",\"\",'Trial Batch Results'!$B$38)","v":10}]
[132,{"$f":"IF('Trial Batch Results'!$K$38=\"\",\"\",'Trial Batch Results'!$K$38)","v":""},{"$f":"IF( 'Trial Batch Results'!$C$6=\"\",\"\", 'Trial Batch Results'!$C$6)","v":"Trial Batch Results"},{"$f":"IF('Trial Batch Results'!$K$26=\"\",\"\",'Trial Batch Results'!$K$26)","v":"Compressive Strength  (psi)"},{"$f":"IF('Trial Batch Results'!$B$38=\"\",\"\",'Trial Batch Results'!$B$38)","v":10}]
[133,{"$f":"IF('Trial Batch Results'!$C$49=\"\",\"\",'Trial Batch Results'!$C$49)","v":""},{"$f":"IF( 'Trial Batch Results'!$C$6=\"\",\"\", 'Trial Batch Results'!$C$6)","v":"Trial Batch Results"},{"$f":"IF('Trial Batch Results'!$C$48=\"\",\"\",'Trial Batch Results'!$C$48)","v":"Trial Batch Remarks:"}]
[134,null,"Tested By ",{"$f":"IF('Trial Batch Results'!$C$53=\"\",\"\",'Trial Batch Results'!$C$53)","v":"TX418"}]
[135,null,"Tested Date ",{"$f":"IF('Trial Batch Results'!$C$53=\"\",\"\",'Trial Batch Results'!$C$53)","v":"TX418"}]

{"sheet":"Reference","index":3,"n_rows":17,"n_cols":12,"rows_kept":17,"cut":false,"hidden":false,"merged":[]}
[]
[null,"Class","Flex St (E)","Flex St (M)","Flex St Unit (E)","Flex St Unit (M)","Age","Comp St (E)","Comp St (M)","Comp St Unit (E)","Comp St Unit (M)","Age"]
[null,"A","425 (390*)","2930 (2690*)","psi","kPa",7,3000,21,"psi","Mpa",28]
[null,"B",280,1930,"psi","kPa",7,2000,14,"psi","Mpa",28]
[null,"C","510 (470*)","3520 (3240*)","psi","kPa",7,3600,25,"psi","Mpa",28]
[null,"D",215,1480,"psi","kPa",7,1500,10,"psi","Mpa",28]
[null,"E",425,2930,"psi","kPa",7,3000,21,"psi","Mpa",28]
[null,"F",null,3.93,"psi","kPa",7,null,null,"psi","Mpa",28]
[null,"H","N/A","N/A","psi","kPa",7,null,null,"psi","Mpa",28]
[null,"S","570 (525*)","3930 (3620*)","psi","kPa",7,4000,28,"psi","Mpa",28]
[null,"P","555*","3830*","psi","kPa",7,"N/A","N/A","psi","Mpa",28]
[null,"DC",720,4960,"psi","kPa",7,5500,38,"psi","Mpa",28]
[null,"CO",640,4410,"psi","kPa",7,4600,32,"psi","Mpa",28]
[null,"SS",510,3520,"psi","kPa",7,3600,25,"psi","Mpa",28]
[null,"K",null,null,"psi","kPa",7,null,null,"psi","Mpa",28]
[null,"*  When Type II or Type I/II cement is used."]
[null,"*  Min. running average for conc. Pavement (in accordance with const. Bulltin C-11)."]